Cogmind - Beta 13 @@@ ROGUE MODE // 2024.06.24 @ 19:19:48 Player: N.W.L Result: Destroyed by C-35 Carver with Improved Concussive RPG Performance ------------- Evolutions (6) 3000 Regions Visited (31) 6200 Robots Destroyed (550) 2750 Value Destroyed (20507) 20507 Prototype IDs (97) 1940 Alien Tech Used (0) 0 Bonus (10468) 10468 TOTAL SCORE: 44865 Bonus ------- Triggered High Security 500 High Alert Combat Kills 6150 Follower Combat Kills 2608 Entered Garrisons 400 Aligned with FarCom 300 Met Data Miner 300 Met Imprinter 300 Acquired ECA 300 Met Warlord at Base 500 MAIN.C Attacked Warlord 500 Warlord Defense Kills 1068 Friendly Fire -2458 Cogmind --------- Core Integrity 0/1150 Matter 239/300 Energy 94/100 System Corruption 42% Temperature Cool (0) Movement Core (50) Location -4/Factory Parts ------- > --- POWER (2) -------- (None) > --- PROPULSION (6) --- (None) > --- UTILITY (8) ------ (None) > --- WEAPON (3) ------- (None) > --- INVENTORY (5) ---- Huge Storage Unit Experimental Force Field Mobile Refinery Mk. CCLXVII Vortex Driver (30) Vortex Lance (36) Peak State ------------ > --- POWER ------------ Vortex Chain Reactor > --- PROPULSION ------- Heavy Treads Armored Heavy Treads Armored Heavy Treads > --- UTILITY ---------- Advanced Heat Sink Cargo Storage Unit Experimental Core Analyzer Experimental Cloaking Device Centrium Light Armor Plating Advanced Hacking Suite Ghost Barrier > --- WEAPON ----------- Magnetic Acceleration Cannon Heavy Autocannon > --- INVENTORY -------- Improved Quantum Reactor Spiked Heavy Treads Armored Heavy Treads Advanced Heavy Treads Improved Matter Compressor Advanced Phase Shifter Improved Medium Armor Plating Improved Medium Armor Plating Thermal Defense Suite Improved Remote Force Field Authchip [Propulsion] Long-range Tractor Beam Mobile Refinery Mk. CCLXVII Vortex Rifle Vortex Driver Vortex Driver KE Penetrator Magnetic Acceleration Cannon Heavy Shock Bomb Launcher Vortex Catalyst Activator Improved Datajack Improved Plasma Cutter CPS Tube Vortex Lance Vortex Lance [Rating: 155] Favorites ----------- Power Light Angular Momentum Engine Engine Light Angular Momentum Engine Power Core Light Nuclear Core Reactor Antimatter Reactor Propulsion Light Treads Treads Light Treads Leg Titanium Leg Wheel Armored Huge Wheel Hover Unit Backup Propulsion III Utility Cargo Storage Unit Device Seismic Detector Storage Cargo Storage Unit Processor Experimental Core Analyzer Hackware Hacking Suite Protection Hardened Medium Armor Plating Weapon Magnetic Acceleration Cannon Energy Gun Heavy Beamcaster Energy Cannon Long-range Phase Cannon Ballistic Gun Enhanced Autogun Ballistic Cannon Magnetic Acceleration Cannon Launcher Heavy Shock Bomb Launcher Special Weapon Plasma Cutter Impact Weapon Hammer Piercing Weapon Plasma Lance Special Melee Weapon Datajack Build | -11 -10 -10 -9 -9 -9 -8 -8 -8 -7 -7 -7 -7 -7 -6 -6 -6 -6 -6 -6 -6 -5 -5 -5 -5 -5 -5 -5 -4 -4 -4 -4 ------- Run | Yrd Mat Min Mat Min Exi Min Mat Gar Fac Was Fac Low Dat Pro Fac Gar Fac Low Low Zio Pro Fac Was Fac Upp Upp War Pro Fac Was Fac Slots Evolved 12 | . . . 2 . . . 2 . 2 . . . . . 2 . . . . . . 2 . . . . . . 2 . . Power 1 | . . . . . . . . . . . . . . . . . . . . . . . . . . . . . 1 . . Propulsion 4 | . . . 1 . . . 1 . 1 . . . . . . . . . . . . 1 . . . . . . . . . Utility 6 | . . . 1 . . . 1 . 1 . . . . . 1 . . . . . . 1 . . . . . . 1 . . Weapon 1 | . . . . . . . . . . . . . . . 1 . . . . . . . . . . . . . . . . Parts Attached 594 | 8 22 16 39 12 5 10 19 29 13 17 58 4 . 9 39 45 20 7 4 16 1 5 29 12 9 9 29 1 37 34 36 Power 28 | 1 1 . 2 1 . . . 1 1 2 1 . . . 3 4 . . . 1 . . 2 . 1 . 2 . 2 2 1 Engine 11 | 1 1 . 1 1 . . . 1 . . 1 . . . 2 2 . . . 1 . . . . . . . . . . . Core 5 | . . . 1 . . . . . 1 . . . . . 1 1 . . . . . . . . . . . . . . 1 Reactor 12 | . . . . . . . . . . 2 . . . . . 1 . . . . . . 2 . 1 . 2 . 2 2 . Propulsion 78 | 2 4 3 11 . 3 . 6 8 4 2 10 . . 3 1 5 . 1 . . . 1 2 . . 2 1 . 2 4 3 Treads 72 | 2 4 3 11 . 3 . 6 8 4 2 7 . . 2 . 5 . 1 . . . 1 2 . . 2 1 . 2 4 2 Leg 2 | . . . . . . . . . . . 2 . . . . . . . . . . . . . . . . . . . . Wheel 3 | . . . . . . . . . . . 1 . . 1 1 . . . . . . . . . . . . . . . . Hover 1 | . . . . . . . . . . . . . . . . . . . . . . . . . . . . . . . 1 Flight . | . . . . . . . . . . . . . . . . . . . . . . . . . . . . . . . . Utility 190 | 2 2 5 6 . . 1 4 6 4 9 16 . . 1 15 16 8 2 3 8 . 2 13 5 4 2 13 . 21 13 9 Device 101 | 1 . 1 3 . . . 1 2 3 4 5 . . 1 10 12 6 1 1 3 . 2 8 2 4 . 10 . 13 6 2 Storage 18 | 1 2 1 1 . . . 1 . . 1 3 . . . 2 2 . . . . . . 2 . . . . . 1 1 . Processor 11 | . . . 1 . . . . . . . 3 . . . 1 1 . . 1 3 . . . . . . 1 . . . . Hackware 10 | . . . 1 . . . . . 1 . . . . . 1 . . . . 2 . . . 2 . . . . 1 1 1 Protection 50 | . . 3 . . . 1 2 4 . 4 5 . . . 1 1 2 1 1 . . . 3 1 . 2 2 . 6 5 6 Artifact . | . . . . . . . . . . . . . . . . . . . . . . . . . . . . . . . . Weapon 298 | 3 15 8 20 11 2 9 9 14 4 4 31 4 . 5 20 20 12 4 1 7 1 2 12 7 4 5 13 1 12 15 23 Energy Gun 44 | 2 6 3 1 . . . 3 . . 2 13 . . . 2 . . . . 2 . . 4 1 . . 1 . . 2 2 Energy Cannon 24 | . . 2 1 . . 1 1 2 1 . 1 . . . 3 2 2 2 . . . 1 1 . . . . . . 2 2 Ballistic Gun 86 | 1 4 3 11 2 . 4 2 5 2 . 4 2 . 2 8 9 6 2 . 1 . . 3 2 1 1 3 . 5 1 2 Ballistic Cannon 40 | . . . . 3 1 . . . . . 2 . . . 1 . . . . 2 1 1 1 3 3 4 4 1 2 6 5 Launcher 69 | . . . 4 6 . 4 3 5 1 2 7 2 . 3 5 5 4 . 1 1 . . 3 . . . . . 3 1 9 Special Weapon 6 | . 1 . . . . . . 2 . . . . . . . . . . . . . . . . . . . . 1 1 1 Impact Weapon 6 | . 3 . 3 . . . . . . . . . . . . . . . . . . . . . . . . . . . . Slashing Weapon . | . . . . . . . . . . . . . . . . . . . . . . . . . . . . . . . . Piercing Weapon 18 | . . . . . . . . . . . 3 . . . 1 4 . . . 1 . . . 1 . . 4 . . 2 2 Special Melee Weapon 5 | . 1 . . . 1 . . . . . 1 . . . . . . . . . . . . . . . 1 . 1 . . Unidentified Prototypes 39 | . . 1 2 . . . 1 . 2 . 6 . . . 3 . . . . 4 . 1 2 1 . . 7 . 5 3 1 Corrupted Parts 8 | . . 1 . . . . . 1 . . . . . . . . . . 1 2 . . . . . . . . . 1 2 System Corruption 57 | . . 2 . . . . . 8 . . . . . . . . . . 3 17 . . . . . . . . . 5 22 Parts Lost 95 | . 1 2 1 1 . . 1 3 . 6 15 1 . 1 9 7 5 1 . . . . 6 1 . 2 . . 9 6 17 Power 11 | . . . . . . . . 1 . . 2 . . . 1 2 . . . . . . 1 . . . . . 1 1 2 Propulsion 25 | . . . . . . . . . . 1 6 1 . 1 3 2 1 1 . . . . . . . 1 . . 2 . 6 Utility 43 | . . 1 1 . . . 1 2 . 5 7 . . . 3 3 1 . . . . . 1 1 . 1 . . 5 3 8 Weapon 16 | . 1 1 . 1 . . . . . . . . . . 2 . 3 . . . . . 4 . . . . . 1 2 1 Highest Loss Streak 7 | . 1 2 1 1 . . 1 2 . 5 2 1 . 1 7 6 2 1 . . . . 6 1 . 2 . . 6 6 6 To Critical Strikes . | . . . . . . . . . . . . . . . . . . . . . . . . . . . . . . . . Average Slot Usage (%) 80 | . 97 97 99 100 100 100 94 92 94 76 74 74 69 67 82 77 74 70 66 72 73 75 53 72 70 75 75 70 65 50 56 Engine 4 | . 11 14 6 11 11 11 9 6 4 . . . . . 4 2 . . . 3 6 5 1 . . . . . . 2 . Reactor 2 | . . . . . . . . . . 2 5 . . . . 1 6 6 6 1 . . 2 5 5 5 5 5 5 5 8 Treads 21 | . 28 27 33 33 33 33 36 36 37 25 17 27 23 21 14 13 17 13 13 13 13 17 17 17 17 17 17 17 15 14 13 Device 9 | . 14 5 10 11 11 6 1 3 14 9 9 15 15 15 15 12 6 4 . 5 6 11 5 10 11 11 18 11 13 4 4 Storage 7 | . 14 14 11 11 11 11 9 9 7 3 7 7 7 7 6 6 6 6 6 6 6 5 6 5 5 5 5 5 5 4 4 Processor 2 | . . . . . . . . . . . 3 . . . 2 6 6 6 6 13 13 11 3 . . . . 5 5 . . Hackware 4 | . . . 10 11 11 11 9 9 10 6 . . . . 5 6 6 6 6 6 6 5 1 1 5 5 5 5 6 . . Protection 4 | . . 6 . . . 4 14 10 . 8 8 7 7 7 3 1 4 6 5 . . . 2 12 5 10 2 5 2 6 9 Energy Gun 2 | . 11 8 . . . . 2 . . 5 7 . . . 1 . . . . 5 6 5 2 . . . . . . 1 . Energy Cannon 1 | . . 4 2 . . . 1 5 7 3 . . . . 3 1 1 1 6 6 6 5 1 . . . . . . . 1 Ballistic Gun 6 | . 11 13 18 2 . 10 10 5 3 . 4 1 . . 11 8 11 10 6 4 . . 3 3 4 . 6 1 2 3 3 Ballistic Cannon 2 | . . . . 8 11 1 . . . . 1 . . . . . . . . 1 6 4 . 13 11 16 4 9 7 2 1 Launcher 2 | . . . . 10 . 9 . 6 . . . 6 7 6 1 1 3 6 6 . . . 2 . . . . . . . 5 Naked Turns 172 | . . . . . . . . . . 42 . . . . . . . . . . . . . . . . . . . 26 104 Heaviest Build 280 | 15 90 97 100 102 99 105 113 113 110 103 65 43 42 43 120 181 188 201 201 191 180 185 195 207 201 202 205 208 237 280 280 Greatest Support 205 | 40 40 40 60 60 60 60 80 80 100 100 130 20 10 28 40 155 155 135 135 135 135 195 205 205 205 205 190 190 195 205 205 Greatest Overweight (x) 30 | . 2 2 1 1 1 1 1 1 1 1 6 4 4 4 4 30 1 1 1 1 1 . . 1 . 1 1 1 1 1 1 Average Overweight (x) 1 | . 1 2 1 1 1 1 1 1 . . 1 3 4 1 2 3 1 1 1 1 1 . . . . . . 1 . . . Largest Inventory Capacity 30 | 8 25 25 25 25 25 25 25 25 25 25 10 10 10 10 25 30 30 30 30 30 30 30 30 30 30 30 30 30 30 30 30 Average Capacity 24 | 7 19 25 25 25 25 25 25 25 25 14 9 10 10 10 18 26 30 30 30 30 30 30 24 30 30 30 30 30 30 27 27 Most Carried 30 | 2 21 25 25 25 25 25 25 25 25 23 10 10 10 10 15 30 30 30 30 30 30 28 30 30 30 30 30 30 30 30 30 Average Carried 23 | . 13 23 24 24 24 25 24 24 24 13 8 9 10 9 12 25 29 29 29 29 30 27 18 29 29 27 29 29 28 24 25 Final Capacity 30 | 8 25 25 25 25 25 25 25 25 25 5 10 10 10 10 25 30 30 30 30 30 30 30 30 30 30 30 30 30 30 30 5 Final Carried 30 | 2 20 23 25 25 25 25 24 25 23 5 10 10 10 10 13 30 29 30 30 30 30 28 27 30 30 30 30 30 21 30 5 Class Distribution -------------------- 32% | Mutant 18% | Hauler-Tank 14% | Hauler-Gunner 14% | Scavenger-Mutant 9% | Hauler-Mutant Dominant Class ---------------- Mutant | -10/Materials Mutant | -10/Mines Mutant | -9/Materials Mutant | -9/Mines Scavenger-Mutant | -9/Exiles Mutant | -8/Mines Mutant | -8/Materials Scavenger-Mutant | -8/Garrison Scavenger-Mutant | -7/Factory Mutant | -7/Waste Scavenger-Mutant | -7/Factory Scavenger-Mutant | -7/Lower Caves Scavenger-Mutant | -7/Data Miner Mutant | -6/Proximity Caves Tank | -6/Factory Gladiator | -6/Garrison Hauler-Tank | -6/Factory Hauler-Gunner | -6/Lower Caves Hauler-Gunner | -6/Lower Caves Hauler-Gunner | -6/Zion Hauler-Gunner | -5/Proximity Caves Hauler-Gunner | -5/Factory Hauler-Gunner | -5/Waste Hauler-Tank | -5/Factory Hauler-Tank | -5/Upper Caves Hauler-Tank | -5/Upper Caves Hauler-Mutant | -5/Warlord Hauler-Tank | -4/Proximity Caves Hauler-Gunner | -4/Factory Hauler-Tank | -4/Waste Hauler-Tank | -4/Factory Resources | -11 -10 -10 -9 -9 -9 -8 -8 -8 -7 -7 -7 -7 -7 -6 -6 -6 -6 -6 -6 -6 -5 -5 -5 -5 -5 -5 -5 -4 -4 -4 -4 ----------- Run | Yrd Mat Min Mat Min Exi Min Mat Gar Fac Was Fac Low Dat Pro Fac Gar Fac Low Low Zio Pro Fac Was Fac Upp Upp War Pro Fac Was Fac Matter Collected 21620 | 280 343 498 1400 377 734 326 576 668 202 238 1434 96 . 581 947 1639 1034 185 16 331 210 . 635 885 1031 924 749 198 2167 718 2198 Remotely 3282 | . . . . . . . . . . . . . . 387 495 165 65 . . . . . . . . . 413 . 1340 . 417 Salvage Created 26129 | 184 1055 557 1109 152 . 342 995 603 294 444 1536 73 . 492 1061 1428 1462 109 16 . 123 . 1025 661 818 586 481 100 2448 779 7196 Parts 1089 | 16 72 23 78 18 . 34 55 39 27 5 85 3 . 13 44 46 49 5 5 . 11 . 2 30 12 13 15 3 81 . 305 Haulers Intercepted 20 | . 2 . 5 . . . 3 . . . 3 . . . 1 . 1 . . . . . . 2 . . . . 1 . 2 Recyclers Shooed 23 | . 4 2 . . . . . . . . 3 . . . 2 . 1 . . . . . . 1 . . . . 4 . 6 Parts Field Recycled . | . . . . . . . . . . . . . . . . . . . . . . . . . . . . . . . . Retrieved Matter . | . . . . . . . . . . . . . . . . . . . . . . . . . . . . . . . . Parts Self-Destructed 72 | . . . . . . . . . . . . 5 . 11 . . . 4 1 . 11 . . . 11 20 . 9 . . . Prevented 6 | . . . . . . . . . . . . . . . . . . 4 . . . . . . . . . 2 . . . Kills | -11 -10 -10 -9 -9 -9 -8 -8 -8 -7 -7 -7 -7 -7 -6 -6 -6 -6 -6 -6 -6 -5 -5 -5 -5 -5 -5 -5 -4 -4 -4 -4 ------- Run | Yrd Mat Min Mat Min Exi Min Mat Gar Fac Was Fac Low Dat Pro Fac Gar Fac Low Low Zio Pro Fac Was Fac Upp Upp War Pro Fac Was Fac Combat Hostiles Destroyed 404 | . 13 7 20 21 . 13 19 14 5 2 33 4 . 22 22 29 22 1 1 . 2 . 4 8 12 13 8 2 38 3 66 Melee 5 | . . . . . . . . . . . . . . . . 3 . . . . . . . . . 1 . . . 1 . Guns 79 | . 5 5 11 . . . 9 2 . 1 10 . . 2 9 4 8 1 . . 1 . . 3 2 . 2 . . 1 3 Cannons 71 | . . 1 2 . . 1 1 1 2 . 4 . . . 1 . 1 . . . 1 . . 4 10 12 6 2 20 1 1 AOE 207 | . 7 1 7 21 . 12 9 11 3 . 19 4 . 20 12 22 7 . 1 . . . 4 1 . . . . 13 . 33 Classes Destroyed 25 | 3 7 . 1 1 . 1 . 1 1 1 3 1 . . 2 . . . 1 . . . . . . 1 1 . . . . Worker 42 | 2 7 2 . . . 1 1 . 4 . 2 . . . . . 2 . . . . . . 2 . . . . 3 . 16 Builder 35 | . 3 . 1 1 . 2 1 . 1 . 3 . . . . . 2 . . . . . . . . . . . 2 . 19 Tunneler 13 | 3 2 1 1 . . 3 . . . . . . . . 2 . . . . . . . . . . . . . . . 1 Hauler 20 | . 2 . 5 . . . 3 . . . 3 . . . 1 . 1 . . . . . . 2 . . . . 1 . 2 Recycler 30 | 1 3 2 . . . 1 2 . 2 . 5 . . . 3 . 1 . . . . . . 1 . . . . 2 . 7 Minesweeper 1 | . . . . . . . . . . . . . . . . . . . . . . . . . . 1 . . . . . Mechanic 5 | . 1 . . . . . . . . . 2 . . . . . . . . . . . . . . . 1 . . . 1 Operator 5 | . 1 . 1 . . . 1 . . . . . . . . . . . . . . . . 1 . . . . 1 . . Watcher 12 | . 3 . 4 . . . 1 . . . . . . . . . . . . . . . . . . . . . . . 4 Swarmer 85 | . 6 3 3 7 . 6 3 3 3 . 5 3 . 8 11 17 . . . . . . . 1 1 . . 1 . . 4 Saboteur 6 | . . . . . . . . . . . . . . . 1 . . . . . . . . . . 1 . . 1 . 3 Grunt 173 | . 7 4 11 3 . 6 10 4 . . 12 . . 13 6 7 14 . . . . . . 4 2 4 5 . 25 . 36 Brawler 14 | . . . . . . . . . . . . . . . 3 . . . . . . . . . 2 3 . . 4 . 2 Duelist 11 | . . . . . . . . . . . 1 . . . . . . . . . . . . . 5 2 . . 1 . 2 Protector 7 | . . . . . . . . . . . 3 . . . . . 2 . . . . . . 1 . . . . . . 1 Sentry 41 | . . . 6 . . . 6 6 . . 1 . . 1 . 5 4 . . . . . . 1 2 2 . 1 1 . 5 Demolisher 1 | . . . . . . . . 1 . . . . . . . . . . . . . . . . . . . . . . . Specialist 2 | . . . . . . . . . . . 2 . . . . . . . . . . . . . . . . . . . . Hunter 22 | . . . . . . 1 . . . . 7 . . . . . . . . . 1 . . 1 . . . . 4 . 8 Programmer 18 | . . . . . . . . . 2 . 2 . . . 1 . 1 . . . 1 . . . . 1 2 . 2 . 6 Behemoth 3 | . . . . . . . . . . . . 1 . . . . 1 1 . . . . . . . . . . . . . Compactor 9 | . . . . . . . . . . 2 . . . . . . . . . . . . 4 . . . . . . 3 . Striker 1 | . . . . . . . . . . . . . . . . . . . . . . . . . . . 1 . . . . Decomposer 1 | . . . . . . . . . . . . . . . . . . 1 . . . . . . . . . . . . . Packrat 1 | . . . . . . . . . . . . . . . . . . . . . . . . . . 1 . . . . . Master Thief 1 | . . . . . . . . . . . . . . . . . . . 1 . . . . . . . . . . . . Assembled 11 | . . . . 11 . . . . . . . . . . . . . . . . . . . . . . . . . . . Thug 1 | . . . . . . . . . . . 1 . . . . . . . . . . . . . . . . . . . . Savage 1 | . . . . . . . . . . . . . . . . . . . . . . . . . . . . . . . 1 Best Kill Streak 32 | 2 5 4 7 4 . 5 12 3 10 2 14 3 . 7 7 9 6 1 1 . 1 . 2 6 7 7 4 1 9 2 32 Combat Bots Only 12 | . 3 3 7 4 . 3 7 3 3 2 12 3 . 7 6 9 5 1 1 . 1 . 2 4 7 6 4 1 8 2 11 Max Kills in Single Turn 6 | 1 3 2 2 3 . 3 4 2 5 1 3 2 . 4 2 3 3 1 1 . 1 . 1 4 1 1 1 1 6 1 6 Gunslinging . | . . . . . . . . . . . . . . . . . . . . . . . . . . . . . . . . Exploded 4 | . 3 1 2 3 . 2 2 2 2 . 3 2 . 4 2 3 2 . 1 . . . 1 1 . . . . 4 . 3 Melee 1 | . . . . . . . . . . . . . . . . 1 . . . . . . . . . 1 . . . 1 . Uniques/NPCs Destroyed 1 | . . 1 . . . . . . . . . . . . . . . . . . . . . . . . . . . . . YI-UF0 (-10/Mines) Combat | -11 -10 -10 -9 -9 -9 -8 -8 -8 -7 -7 -7 -7 -7 -6 -6 -6 -6 -6 -6 -6 -5 -5 -5 -5 -5 -5 -5 -4 -4 -4 -4 -------- Run | Yrd Mat Min Mat Min Exi Min Mat Gar Fac Was Fac Low Dat Pro Fac Gar Fac Low Low Zio Pro Fac Was Fac Upp Upp War Pro Fac Was Fac Hostile Shots Fired 2244 | . 60 30 69 16 . 27 67 48 15 5 267 7 . 27 108 233 154 39 2 . 6 . 9 31 80 94 46 3 263 10 528 Missed 689 | . 17 4 24 7 . 8 16 14 2 . 67 3 . 13 30 102 56 11 . . . . . 10 10 17 14 1 79 1 183 Damage Taken 28132 | 18 490 339 553 351 . 452 925 905 201 809 3074 141 . 281 1788 1179 1538 801 96 . 110 . 799 385 1414 1287 373 34 3388 572 5829 Core 3214 | . 114 74 112 7 . 30 78 124 34 200 438 . . 20 197 217 59 32 . . . . 87 120 41 15 58 . 128 . 1029 Absorbed by Shields 1974 | . . . 32 36 . 16 . . . . . . . . 122 25 . . . . . . . 127 318 406 267 9 616 . . Reduced by Siege Mode 899 | . . . . . . . . . . . 23 . . . . . 38 92 . . . . 83 . 100 184 24 . 255 83 17 Redirected to Shielding 93 | . . . . . . . . . . . . . . . . . . . . . . . . . . . . . . 93 . Ignored by Resistances 2542 | . . . . . . . 24 16 . . . . . . . . 179 . . . . . . 34 27 . 102 3 121 . 2036 Regen/Repaired (Parts) 1963 | . 49 . . . . . . . . 53 . . . . . . . . . . . . 606 13 . . 674 . . 552 16 Core Remaining (%) 51 | 100 . 24 . . . 62 . 63 . . . . . 1 . . . . . . 40 . . . . . . 67 . . . Volleys Fired 1229 | 17 104 49 77 21 . 39 37 60 23 35 115 5 . 27 47 46 50 33 4 . 22 . 11 30 55 34 20 8 89 24 147 Largest 3 | 2 2 2 2 2 . 2 2 2 2 2 2 1 . 2 3 3 3 3 1 . 3 . 3 3 3 3 3 2 3 3 3 Hottest 234 | 80 100 80 85 64 . 66 85 85 55 90 162 46 . 60 165 160 165 134 80 . 234 . 147 159 159 159 139 143 143 116 210 Shots Fired 2125 | 34 149 70 138 25 . 47 106 81 30 38 209 5 . 30 94 68 106 40 4 . 28 . 21 85 106 100 44 16 159 55 237 Gun 1013 | 34 146 57 113 3 . 8 88 22 10 6 147 . . 10 70 39 82 18 . . 3 . . 14 12 1 18 2 30 31 49 Cannon 689 | . . 13 16 2 . 7 5 18 18 32 39 . . . 12 12 5 16 . . 25 . 4 71 94 99 26 14 102 22 37 Launcher 417 | . . . 9 20 . 32 13 40 2 . 23 5 . 20 12 17 19 6 4 . . . 17 . . . . . 27 1 150 Special 6 | . 3 . . . . . . 1 . . . . . . . . . . . . . . . . . . . . . 1 1 Kinetic 1181 | . 50 21 113 5 . 14 47 22 10 . 91 . . 10 70 32 82 18 . . 3 . 1 85 106 100 44 16 132 52 57 Thermal 345 | . 3 13 16 . . 1 46 19 18 38 95 . . . 12 19 5 16 . . 25 . 3 . . . . . . 1 15 Explosive 173 | . . . 9 20 . 26 10 9 2 . 16 5 . 20 12 17 8 . 2 . . . 17 . . . . . . . . Electromagnetic 407 | 34 96 36 . . . 6 3 31 . . 7 . . . . . 11 6 2 . . . . . . . . . 25 . 150 Entropic 17 | . . . . . . . . . . . . . . . . . . . . . . . . . . . . . 2 1 14 Robot Hit Streak 27 | 6 13 11 15 4 . 5 15 16 7 3 17 4 . 8 15 9 11 15 2 . 3 . 15 5 20 27 10 1 18 19 10 Robot Miss Streak 7 | 3 5 5 3 2 . 3 4 2 5 2 7 . . 1 2 2 3 4 1 . 2 . 1 5 3 3 3 3 4 2 4 Penetration Max 1 | . . . . . . . . . . . 1 . . . 1 . 1 . . . . . . 1 . . 1 . 1 . 1 Secondary Targets 7 | . . . . . . . 1 . . . . . . . 2 3 1 . . . . . . . . . . . . . . Max Gunslinging Chain 1 | . . . . . . . 1 . . . . . . . 1 1 1 . . . . . . . . . . . . . . Autonomous 41 | . . . . . . . 41 . . . . . . . . . . . . . . . . . . . . . . . . Shots Hit Robots 1252 | 18 86 44 91 7 3 15 79 37 13 5 126 1 . 11 54 74 60 24 1 . 4 . 18 45 61 67 44 2 110 49 103 Core Hits 1057 | 6 43 19 44 31 . 35 43 32 14 2 109 5 . 36 48 74 84 13 2 . 4 . 10 23 25 26 19 2 85 10 213 Critical Kills 2 | . . . . . . . . . . . . . . . 1 1 . . . . . . . . . . . . . . . Critical Parts Destroyed 15 | . 1 . . . . . 1 . . . 3 . . . 1 2 . . . . . . . 1 . . . . 4 . 2 Critical Strikes 50 | . 4 . . . . . 1 . . . 11 . . . 2 5 . . . . 1 . 1 7 . 1 1 . 7 5 4 Burn 10 | . . . . . . . . . . . 8 . . . . 1 . . . . 1 . . . . . . . . . . Destroy 20 | . . . . . . . 1 . . . 3 . . . 2 3 . . . . . . 1 1 . . . . 4 5 . Blast 12 | . . . . . . . . . . . . . . . . . . . . . . . . 6 . 1 1 . 3 . 1 Corrupt 3 | . 3 . . . . . . . . . . . . . . . . . . . . . . . . . . . . . . Smash 1 | . 1 . . . . . . . . . . . . . . . . . . . . . . . . . . . . . . Impale 1 | . . . . . . . . . . . . . . . . 1 . . . . . . . . . . . . . . . Detonate 2 | . . . . . . . . . . . . . . . . . . . . . . . . . . . . . . . 2 Sunder 1 | . . . . . . . . . . . . . . . . . . . . . . . . . . . . . . . 1 Melee Attacks 102 | . 7 1 3 . 3 . . . . . 5 . . . . 49 . . . 1 . . . . . . 25 . 3 4 1 Impact 10 | . 6 1 3 . . . . . . . . . . . . . . . . . . . . . . . . . . . . Slashing . | . . . . . . . . . . . . . . . . . . . . . . . . . . . . . . . . Piercing 67 | . . . . . . . . . . . 5 . . . . 49 . . . 1 . . . . . . 12 . . . . Entropic 5 | . . . . . . . . . . . . . . . . . . . . . . . . . . . . . . 4 1 Sneak Attacks 25 | . 3 1 2 . 3 . . . . . . . . . . . . . . . . . . . . . 13 . 3 . . Combat Hostiles 3 | . . . . . . . . . . . . . . . . . . . . . . . . . . . . . 3 . . Follow-up Attacks 8 | . . . . . . . . . . . . . . . . 8 . . . . . . . . . . . . . . . Damage Inflicted 72685 | 251 1612 747 2403 1283 . 1530 3113 1544 687 105 6675 581 . 2784 3106 6239 4194 630 370 . 123 . 2503 1636 1818 2063 1615 311 8493 2049 14220 Guns 14397 | 223 1092 392 1351 53 . 43 1559 107 91 51 2334 . . 188 1142 560 1239 423 . . 76 . . 297 238 . 511 . 860 690 877 Cannons 13167 | . . 161 294 . . 63 71 266 209 54 384 . . . 111 . 79 . . . 47 . 125 1159 1580 2063 1104 311 3682 740 664 Explosions 41285 | 28 453 138 642 1230 . 1375 1483 1171 387 . 3834 581 . 2596 1853 2656 2845 207 370 . . . 2378 180 . . . . 3945 309 12624 Melee 3659 | . 66 52 106 . . . . . . . 102 . . . . 3023 . . . . . . . . . . . . . 310 . Ramming 177 | . 1 4 10 . . 49 . . . . 21 . . . . . 31 . . . . . . . . . . . 6 . 55 Kinetic 21513 | . 343 106 1351 53 . 106 599 107 91 . 1163 . . 188 1142 418 1239 423 . . . . 16 1456 1818 2063 1615 311 4542 1417 946 Thermal 8163 | 28 453 299 294 54 . . 1181 295 209 105 1585 . . . 308 142 140 . . . 123 . 109 180 . . . . 150 13 2495 Explosive 20301 | . . . 642 1176 . 1214 1158 348 387 . 3494 581 . 2596 1656 2656 1378 . 200 . . . 2378 . . . . . 437 . . Electromagnetic 16334 | 223 749 286 . . . 161 175 794 . . 310 . . . . . 1406 207 170 . . . . . . . . . 1550 . 10303 Impact 224 | . 66 52 106 . . . . . . . . . . . . . . . . . . . . . . . . . . . . Slashing . | . . . . . . . . . . . . . . . . . . . . . . . . . . . . . . . . Piercing 3125 | . . . . . . . . . . . 102 . . . . 3023 . . . . . . . . . . . . . . . Entropic 2848 | . . . . . . . . . . . . . . . . . . . . . . . . . . . . . 1808 619 421 Highest Corruption 42 | . . 2 . . . . . 10 2 9 17 17 17 17 15 15 18 18 24 24 . . . . . 3 3 . 11 16 42 Average Corruption 13 | . . 2 . . . . . 7 1 5 14 17 17 17 13 15 16 18 21 22 . . . . . 2 3 . 4 15 26 Corruption Purged . | . . . . . . . . . . . . . . . . . . . . . . . . . . . . . . . . Corruption Blocked . | . . . . . . . . . . . . . . . . . . . . . . . . . . . . . . . . Effects 639 | . . 18 . . . . . 43 . 23 100 13 5 25 16 77 55 38 27 5 . . . . . 12 . . 12 61 109 Message Errors 131 | . . 2 . . . . . 10 . 4 14 3 3 6 5 22 15 7 8 . . . . . . 3 . . 3 12 14 Matter Fused 158 | . . 5 . . . . . 8 . 7 21 6 . 4 4 27 9 12 5 2 . . . . . 4 . . 2 14 28 Heat Flow Errors 92 | . . 3 . . . . . 8 . 4 19 2 . 3 2 11 6 9 2 . . . . . . 2 . . 1 7 13 Energy Discharges 77 | . . 4 . . . . . 7 . . 12 1 1 . 2 6 9 2 7 1 . . . . . 2 . . 4 9 10 Parts Rejected 6 | . . 1 . . . . . 1 . . 2 . . . . . 1 . . . . . . . . . . . . . 1 Parts Fused 9 | . . . . . . . . . . 2 2 . . 1 . . 2 1 . . . . . . . . . . . . 1 Data Loss (minor) 66 | . . 2 . . . . . 7 . 3 15 . 1 5 1 6 5 4 3 1 . . . . . . . . . 6 7 Data Loss (major) 23 | . . . . . . . . . . 2 3 . . 5 . 2 2 . . 1 . . . . . . . . . 5 3 Misfires 19 | . . 1 . . . . . 1 . . 4 . . . . 3 2 1 . . . . . . . 1 . . 1 1 4 Alerts 12 | . . . . . . . . 1 . 1 1 1 . . . . . 1 2 . . . . . . . . . . 3 2 Misdirections 13 | . . . . . . . . . . . 1 . . . . . . . . . . . . . . . . . . 1 11 Weapon Failures 33 | . . . . . . . . . . . 6 . . 1 2 . 4 1 . . . . . . . . . . 1 3 15 Overload Shots 5 | . . . . . . . . . . 5 . . . . . . . . . . . . . . . . . . . . . Overflow Damage 1922 | . 57 40 57 3 . 19 123 80 . . 43 132 . 142 108 175 11 . 28 . . . . 70 29 108 . 28 291 . 378 Projectiles 538 | . . 9 . . . . . . . . 16 . . . . . . . . . . . . 14 29 108 . 28 238 . 96 Explosions 1153 | . 21 1 9 3 . 11 123 80 . . 27 132 . 142 108 66 11 . 28 . . . . 56 . . . . 53 . 282 Melee 231 | . 36 30 48 . . 8 . . . . . . . . . 109 . . . . . . . . . . . . . . . Knockbacks 65 | . . . . . . . . . . . 6 . . . . . . . . . . . . 7 8 11 2 2 26 . 3 Impact . | . . . . . . . . . . . . . . . . . . . . . . . . . . . . . . . . Kinetic 59 | . . . . . . . . . . . 6 . . . . . . . . . . . . 7 8 10 2 2 21 . 3 Secondary 6 | . . . . . . . . . . . . . . . . . . . . . . . . . . 1 . . 5 . . Self-Inflicted Damage 2590 | 19 37 33 30 194 . 250 201 92 . . 109 65 . 25 218 100 127 . 96 . . . 231 . . . . . 143 178 442 Shots 116 | 1 1 1 1 6 . 8 3 8 . . 5 2 . 3 6 3 13 . 7 . . . 5 . . . . . 8 1 34 Rammed 15 | . 2 1 2 . . 3 . . . . 2 . . . . . 1 . . . . . . . . . . . 1 . 3 Targets Rammed 15 | . 2 1 2 . . 3 . . . . 2 . . . . . 1 . . . . . . . . . . . 1 . 3 Kicked . | . . . . . . . . . . . . . . . . . . . . . . . . . . . . . . . . Crushed . | . . . . . . . . . . . . . . . . . . . . . . . . . . . . . . . . Highest Temperature 584 | 138 102 272 141 44 . 69 266 281 4 278 584 171 . 256 400 308 255 398 150 . 144 . 33 572 417 373 6 6 242 387 578 Average Temperature 105 | 41 36 67 32 20 . 30 79 95 1 92 138 94 . 109 51 103 69 133 60 . 66 . 16 169 178 123 3 6 40 68 139 Received Heat Transfer 4783 | . 90 153 219 3 . 81 333 90 . . 426 12 . 108 334 270 390 120 . . . . . 78 300 262 70 20 477 . 947 Effects 63 | . . . . . . . . 1 . . 16 . . . 1 . 1 6 . . . . . 8 1 2 . . . 1 26 Shutdowns 15 | . . . . . . . . . . . 3 . . . . . . 3 . . . . . 1 1 . . . . 1 6 Energy Bleed 17 | . . . . . . . . 1 . . 2 . . . 1 . 1 . . . . . . 1 . 2 . . . . 9 Interference 8 | . . . . . . . . . . . . . . . . . . 3 . . . . . 3 . . . . . . 2 Matter Decay 1 | . . . . . . . . . . . . . . . . . . . . . . . . . . . . . . . 1 Short Circuit 5 | . . . . . . . . . . . 3 . . . . . . . . . . . . . . . . . . . 2 Damage (minor) 7 | . . . . . . . . . . . 2 . . . . . . . . . . . . 2 . . . . . . 3 Damage (major) 8 | . . . . . . . . . . . 5 . . . . . . . . . . . . . . . . . . . 3 Damage (core) 2 | . . . . . . . . . . . 1 . . . . . . . . . . . . 1 . . . . . . . Siege Activations 29 | . . . . . . . . . . . 1 . . . . . 1 1 . . 3 . 2 2 2 4 2 . 6 2 3 Total Turns 699 | . . . . . . . . . . . 26 . . . . . 25 34 . . 12 . 121 9 70 121 32 . 150 53 46 Longest Duration 99 | . . . . . . . . . . . 26 . . . . . 25 34 . . 8 . 99 6 58 54 24 . 53 39 26 Robots Corrupted 48 | . 1 1 . . . . . 1 . . 1 . . . . . 6 . . . . . . . . . . . 5 . 33 Combat Hostiles 41 | . 1 . . . . . . . . . . . . . . . 6 . . . . . . . . . . . 5 . 29 Parts Fried 141 | . 2 4 1 . . . 1 6 . . 2 . . . . . 18 . . . . . . . . . . . 9 . 98 Impact Corruptions 6 | . 1 1 2 . . 1 . . . . . . . . . . . . . . . . . . . 1 . . . . . Robots Melted 1 | . . . . . . . . . . 1 . . . . . . . . . . . . . . . . . . . . . Combat Hostiles 1 | . . . . . . . . . . 1 . . . . . . . . . . . . . . . . . . . . . Parts Melted 16 | . 2 . . . . . . . . 3 4 . . . 2 . . . . . 2 . . . . . 1 . . . 2 Heat Transferred 10146 | . 650 359 444 100 . . 1582 456 259 222 2727 . . . 261 450 124 . . . 222 . . 150 . . . . 150 37 1953 Parts Sabotaged 2 | . . . . . . . . . . . . . . . . . . . . . . . . . . 2 . . . . . Parts Stolen 2 | . . . . . . . . . . . . . . . . . . . 2 . . . . . . . . . . . . Parts Stripped . | . . . . . . . . . . . . . . . . . . . . . . . . . . . . . . . . Power Chain Reactions 58 | 1 8 2 . . . . 2 2 . . 2 . . . . . 2 . . . . . . . . . . . 2 . 37 Alert | -11 -10 -10 -9 -9 -9 -8 -8 -8 -7 -7 -7 -7 -7 -6 -6 -6 -6 -6 -6 -6 -5 -5 -5 -5 -5 -5 -5 -4 -4 -4 -4 ------- Run | Yrd Mat Min Mat Min Exi Min Mat Gar Fac Was Fac Low Dat Pro Fac Gar Fac Low Low Zio Pro Fac Was Fac Upp Upp War Pro Fac Was Fac Peak Influence 2445 | 30 275 134 485 392 . 238 698 1357 803 281 1151 . . . 672 1467 1470 . . . . . 181 991 . . . . 1434 496 2445 Initial 770 | . 19 1 34 157 . . 68 453 711 281 . . . . 189 373 770 . . . . . . . . . . . 46 494 . Average 424 | 13 50 27 207 298 . 55 154 921 712 111 611 . . . 384 1076 1161 . . . . . 41 466 . . . . 388 213 1068 Maximum Alert Level 5 | . 1 . 2 1 . 1 2 4 3 1 4 . . . 2 4 4 . . . . . . 3 . . . . 4 2 5 Low Security (%) 48 | 100 97 100 52 16 . 98 75 . . 59 13 . . . 6 . . . . . . 100 100 46 . . . . 52 46 3 Level 1 13 | . 2 . 22 83 . 1 15 . . 40 10 . . . 51 6 . . . . . . . 1 . . . . 16 26 24 Level 2 11 | . . . 25 . . . 8 24 15 . 34 . . . 42 2 . . . . . . . 14 . . . . 3 26 17 Level 3 15 | . . . . . . . . 39 84 . 36 . . . . 46 42 . . . . . . 38 . . . . 17 . 13 Level 4 9 | . . . . . . . . 35 . . 4 . . . . 45 57 . . . . . . . . . . . 9 . 10 Level 5 . | . . . . . . . . . . . . . . . . . . . . . . . . . . . . . . . 12 High Security 1 | . . . . . . . . . . . . . . . . . . . . . . . . . . . . . . . 18 Max Security . | . . . . . . . . . . . . . . . . . . . . . . . . . . . . . . . . Squads Dispatched 91 | . 6 . 1 1 . 1 4 . 3 . 19 . . 1 5 . 10 . . . . . . 5 . 1 . . 9 . 25 Investigation 20 | . 6 . . 1 . . 1 . . . 4 . . . 2 . 2 . . . . . . 1 . . . . 2 . 1 Extermination 11 | . . . . . . . . . 1 . 3 . . . 2 . 1 . . . . . . 1 . . . . 2 . 1 Reinforcement 25 | . . . 1 . . 1 1 . 1 . 7 . . . . . 2 . . . . . . 2 . . . . 2 . 8 Assault 25 | . . . . . . . . . . . 3 . . 1 1 . 2 . . . . . . 1 . 1 . . 2 . 14 Garrison 10 | . . . . . . . 2 . 1 . 2 . . . . . 3 . . . . . . . . . . . 1 . 1 Intercept . | . . . . . . . . . . . . . . . . . . . . . . . . . . . . . . . . Searches Triggered . | . . . . . . . . . . . . . . . . . . . . . . . . . . . . . . . . Construction Impeded 11 | . . . . . . 1 . . . . 3 . . . . . 1 . . . . . . . . . . . . . 6 Haulers Reinforced 4 | . . . . . . . . . 1 . . . . . . . . . . . . . . 2 . . . . 1 . . Active Scanning Responses . | . . . . . . . . . . . . . . . . . . . . . . . . . . . . . . . . Cargo Convoy Interrupts 1 | . . . . . . . . . . . 1 . . . . . . . . . . . . . . . . . . . . Stealth | -11 -10 -10 -9 -9 -9 -8 -8 -8 -7 -7 -7 -7 -7 -6 -6 -6 -6 -6 -6 -6 -5 -5 -5 -5 -5 -5 -5 -4 -4 -4 -4 --------- Run | Yrd Mat Min Mat Min Exi Min Mat Gar Fac Was Fac Low Dat Pro Fac Gar Fac Low Low Zio Pro Fac Was Fac Upp Upp War Pro Fac Was Fac Distress Signals 32 | . 1 . 3 . . 2 2 . 1 . 3 . . . 1 . 1 . . . . . . 1 . . 4 . 3 . 10 Communications Jammed . | . . . . . . . . . . . . . . . . . . . . . . . . . . . . . . . . Distress Signals . | . . . . . . . . . . . . . . . . . . . . . . . . . . . . . . . . Times Spotted 667 | . 23 7 36 18 . 10 25 16 9 10 67 4 . 19 26 25 26 1 6 . 2 . 7 23 12 17 49 6 62 6 155 Peak Tracking Total 30 | . 4 3 6 3 . 3 7 10 3 6 11 3 . 8 5 8 6 1 3 . 1 . 2 7 7 11 12 3 7 2 30 Tactical Retreats 42 | . 3 . . . . . 1 3 . 1 2 . . 2 1 1 2 . . . . . 1 2 . 3 . 7 2 . 11 Traps | -11 -10 -10 -9 -9 -9 -8 -8 -8 -7 -7 -7 -7 -7 -6 -6 -6 -6 -6 -6 -6 -5 -5 -5 -5 -5 -5 -5 -4 -4 -4 -4 ------- Run | Yrd Mat Min Mat Min Exi Min Mat Gar Fac Was Fac Low Dat Pro Fac Gar Fac Low Low Zio Pro Fac Was Fac Upp Upp War Pro Fac Was Fac Traps Triggered 25 | . 1 . . . . . 1 6 2 . 1 . . . 2 4 1 . . . . 1 . . . . . . 3 . 3 Indirectly 6 | . . . . . . . . 2 . . . . . . . . . . . . . . . . . . . . 1 . 3 Trap Hack Attempts 60 | . 59 . . . . . . . . . . . . . . . . . . . . . . . . . . . 1 . . Triggered . | . . . . . . . . . . . . . . . . . . . . . . . . . . . . . . . . Disarmed . | . . . . . . . . . . . . . . . . . . . . . . . . . . . . . . . . Reprogrammed 4 | . 4 . . . . . . . . . . . . . . . . . . . . . . . . . . . . . . Reused 2 | . . . . . . . . . . 2 . . . . . . . . . . . . . . . . . . . . . Traps Extracted . | . . . . . . . . . . . . . . . . . . . . . . . . . . . . . . . . Installed 4 | . . . . . . . . . . 2 . . . . . . . . . . . . . . . . . 2 . . . Triggered 14 | . 1 . . . . . . . . . . 2 . . . . 1 . 2 . . . . . . 1 7 . . . . Most Traps Carried 8 | . . . . . . . . 8 8 8 . . . . . . . . . . . . . . . 2 2 2 . . . Machines | -11 -10 -10 -9 -9 -9 -8 -8 -8 -7 -7 -7 -7 -7 -6 -6 -6 -6 -6 -6 -6 -5 -5 -5 -5 -5 -5 -5 -4 -4 -4 -4 ---------- Run | Yrd Mat Min Mat Min Exi Min Mat Gar Fac Was Fac Low Dat Pro Fac Gar Fac Low Low Zio Pro Fac Was Fac Upp Upp War Pro Fac Was Fac Machines Disabled 89 | . 1 1 1 4 . 2 8 5 . . 9 . . . 7 6 17 . . . . . . 4 1 1 . . 16 . 6 Max in Single Turn 6 | . 1 1 1 2 . 1 3 2 . . 1 . . . 5 2 6 . . . . . . 3 1 1 . . 4 . 2 Garrison Access 3 | . . . . . . . . . . . 1 . . . . . . . . . . . . . . . . . 1 . 1 Garrison Relay 2 | . . . . . . . . 2 . . . . . . . . . . . . . . . . . . . . . . . Phase Generator 1 | . . . . . . . . . . . . . . . . 1 . . . . . . . . . . . . . . . Machines Repaired . | . . . . . . . . . . . . . . . . . . . . . . . . . . . . . . . . Machines Dismantled 3 | . . . . . . . . 3 . . . . . . . . . . . . . . . . . . . . . . . Machines Sabotaged . | . . . . . . . . . . . . . . . . . . . . . . . . . . . . . . . . Overloaded Fab Kills . | . . . . . . . . . . . . . . . . . . . . . . . . . . . . . . . . Hacking | -11 -10 -10 -9 -9 -9 -8 -8 -8 -7 -7 -7 -7 -7 -6 -6 -6 -6 -6 -6 -6 -5 -5 -5 -5 -5 -5 -5 -4 -4 -4 -4 --------- Run | Yrd Mat Min Mat Min Exi Min Mat Gar Fac Was Fac Low Dat Pro Fac Gar Fac Low Low Zio Pro Fac Was Fac Upp Upp War Pro Fac Was Fac Machines Accessed 63 | . 10 1 5 1 2 . 2 3 2 . 7 . 3 . 5 3 3 1 . 1 . 1 . 2 . . 6 . 3 . 2 Terminals 33 | . 8 . 4 1 . . 1 3 . . 2 . . . 4 3 3 . . . . . . 1 . . . . 2 . 1 Fabricators 4 | . . . . . . . . . . . 4 . . . . . . . . . . . . . . . . . . . . Repair Stations 2 | . 1 . . . . . . . 1 . . . . . . . . . . . . . . . . . . . . . . Recycling Units 6 | . 1 . 1 . . . . . 1 . 1 . . . . . . . . . . 1 . 1 . . . . . . . Scanalyzers . | . . . . . . . . . . . . . . . . . . . . . . . . . . . . . . . . Garrison Access 4 | . . . . . . . 1 . . . . . . . 1 . . . . . . . . . . . . . 1 . 1 Total Hacks 196 | . 36 1 13 4 5 . 5 9 4 . 20 . 26 . 14 7 7 1 . 3 . 2 . 5 . . 18 . 11 . 5 Successful 101 | . 10 1 7 2 5 . 3 3 4 . 4 . 26 . 5 1 1 1 . 3 . 1 . 3 . . 18 . 2 . 1 Failed 95 | . 26 . 6 2 . . 2 6 . . 16 . . . 9 6 6 . . . . 1 . 2 . . . . 9 . 4 Catastrophic 20 | . 3 . 1 . . . . 1 . . 6 . . . 2 1 3 . . . . . . 1 . . . . . . 2 Database Lockouts . | . . . . . . . . . . . . . . . . . . . . . . . . . . . . . . . . Manual 72 | . 28 . 7 6 1 . 4 5 . . 9 . . . 3 . . . . . . 1 . 2 . . 1 . 5 . . Terminals 102 | . 30 . 10 4 . . 4 9 . . 6 . . . 11 7 7 . . . . . . 4 . . . . 7 . 3 Fabricators 13 | . . . . . . . . . . . 13 . . . . . . . . . . . . . . . . . . . . Repair Stations 5 | . 3 . . . . . . . 2 . . . . . . . . . . . . . . . . . . . . . . Recycling Units 12 | . 3 . 3 . . . . . 2 . 1 . . . . . . . . . . 2 . 1 . . . . . . . Scanalyzers . | . . . . . . . . . . . . . . . . . . . . . . . . . . . . . . . . Garrison Access 10 | . . . . . . . 1 . . . . . . . 3 . . . . . . . . . . . . . 4 . 2 Terminal Hacks 83 | . 5 1 6 2 5 . 2 3 . . 1 . 26 . 3 1 1 1 . 3 . . . 3 . . 18 . 2 . . Record 17 | . . . . . 4 . . . . . . . 6 . . . . . . . . . . . . . 7 . . . . Part Schematic 17 | . . . 1 . . . 1 . . . . . 12 . . . . . . 3 . . . . . . . . . . . Robot Schematic 5 | . . . . . . . . . . . . . 5 . . . . . . . . . . . . . . . . . . Robot Analysis 5 | . 2 . 1 1 . . 1 . . . . . . . . . . . . . . . . . . . . . . . . Prototype ID Bank 16 | . . . 2 . . . . . . . . . 3 . . . . . . . . . . 1 . . 10 . . . . Open Door 3 | . . 1 . . . . . . . . . . . . . . . 1 . . . . . . . . 1 . . . . Level Access Points 1 | . . . . . . . . . . . . . . . . . 1 . . . . . . . . . . . . . . Branch Access Points 2 | . . . . . . . . . . . . . . . 1 . . . . . . . . 1 . . . . . . . Emergency Access Points 1 | . . . . . . . . 1 . . . . . . . . . . . . . . . . . . . . . . . Terminal Index 2 | . 1 . . . . . . . . . . . . . . . . . . . . . . . . . . . 1 . . Locate Traps 1 | . . . . . . . . . . . . . . . 1 . . . . . . . . . . . . . . . . Dispatch Records 1 | . . . . 1 . . . . . . . . . . . . . . . . . . . . . . . . . . . Security Status 1 | . . . 1 . . . . . . . . . . . . . . . . . . . . . . . . . . . . Transport Status 1 | . 1 . . . . . . . . . . . . . . . . . . . . . . . . . . . . . . Recall Extermination 1 | . . . . . . . . . . . . . . . 1 . . . . . . . . . . . . . . . . Hauler Manifests 2 | . 1 . 1 . . . . . . . . . . . . . . . . . . . . . . . . . . . . Registered Components 2 | . . . . . . . . . . . . . . . . . . . . . . . . 1 . . . . 1 . . Zone Layout 1 | . . . . . . . . . . . 1 . . . . . . . . . . . . . . . . . . . . Garrison Registry 1 | . . . . . . . . . . . . . . . . 1 . . . . . . . . . . . . . . . Patrol Navigation 1 | . . . . . . . . 1 . . . . . . . . . . . . . . . . . . . . . . . Security Stations 1 | . . . . . . . . 1 . . . . . . . . . . . . . . . . . . . . . . . Derelict Proto ID Bank 1 | . . . . . 1 . . . . . . . . . . . . . . . . . . . . . . . . . . Fabricator Hacks 2 | . . . . . . . . . . . 2 . . . . . . . . . . . . . . . . . . . . Network Status 1 | . . . . . . . . . . . 1 . . . . . . . . . . . . . . . . . . . . Build 1 | . . . . . . . . . . . 1 . . . . . . . . . . . . . . . . . . . . Repair Station Hacks 4 | . 2 . . . . . . . 2 . . . . . . . . . . . . . . . . . . . . . . Scan Component 2 | . 1 . . . . . . . 1 . . . . . . . . . . . . . . . . . . . . . . Repair 2 | . 1 . . . . . . . 1 . . . . . . . . . . . . . . . . . . . . . . Recycling Unit Hacks 4 | . . . 1 . . . . . 2 . . . . . . . . . . . . 1 . . . . . . . . . Retrieve Matter 1 | . . . . . . . . . 1 . . . . . . . . . . . . . . . . . . . . . . Retrieve Components 3 | . . . 1 . . . . . 1 . . . . . . . . . . . . 1 . . . . . . . . . Scanalyzer . | . . . . . . . . . . . . . . . . . . . . . . . . . . . . . . . . Garrison Access Hacks 3 | . . . . . . . 1 . . . . . . . 1 . . . . . . . . . . . . . . . 1 Unlock Access 2 | . . . . . . . 1 . . . . . . . 1 . . . . . . . . . . . . . . . . Seal Access 1 | . . . . . . . . . . . . . . . . . . . . . . . . . . . . . . . 1 Unauthorized Hacks 5 | . 3 . . . . . . . . . 1 . . . 1 . . . . . . . . . . . . . . . . Terminals 4 | . 2 . . . . . . . . . 1 . . . 1 . . . . . . . . . . . . . . . . Botnet 3 | . 1 . . . . . . . . . 1 . . . 1 . . . . . . . . . . . . . . . . Operators 1 | . 1 . . . . . . . . . . . . . . . . . . . . . . . . . . . . . . Fabricators . | . . . . . . . . . . . . . . . . . . . . . . . . . . . . . . . . Repair Stations . | . . . . . . . . . . . . . . . . . . . . . . . . . . . . . . . . Recycling Units 1 | . 1 . . . . . . . . . . . . . . . . . . . . . . . . . . . . . . Mask 1 | . 1 . . . . . . . . . . . . . . . . . . . . . . . . . . . . . . Scanalyzers . | . . . . . . . . . . . . . . . . . . . . . . . . . . . . . . . . Garrison Access . | . . . . . . . . . . . . . . . . . . . . . . . . . . . . . . . . Data Cores Recovered 1 | . . . . . . . . . . . . . . . . . . . . . . . . 1 . . . . . . . Used . | . . . . . . . . . . . . . . . . . . . . . . . . . . . . . . . . Hacking Detections 45 | . 9 . 5 1 . . 1 3 2 . 7 . . . 4 3 3 . . . . 1 . 2 . . . . 3 . 1 Full Trace Events 22 | . 7 . . 1 . . . 2 . . 4 . . . 2 1 2 . . . . . . . . . . . 2 . 1 Feedback Events . | . . . . . . . . . . . . . . . . . . . . . . . . . . . . . . . . Feedback Blocked . | . . . . . . . . . . . . . . . . . . . . . . . . . . . . . . . . Robot Schematics Acquired 8 | . . . . . . . . . . . . . 5 . . . . . . 3 . . . . . . . . . . . Robots Built 3 | . . . . . . . . . . . 3 . . . . . . . . . . . . . . . . . . . . Authchips . | . . . . . . . . . . . . . . . . . . . . . . . . . . . . . . . . Time 67 | . . . . . . . . . . . 67 . . . . . . . . . . . . . . . . . . . . Total Robot Build Rating 12 | . . . . . . . . . . . 12 . . . . . . . . . . . . . . . . . . . . Part Schematics Acquired 32 | . . . 1 . . . 1 . . . . . 12 . . . . . . 18 . . . . . . . . . . . Parts Built . | . . . . . . . . . . . . . . . . . . . . . . . . . . . . . . . . Authchips . | . . . . . . . . . . . . . . . . . . . . . . . . . . . . . . . . Time . | . . . . . . . . . . . . . . . . . . . . . . . . . . . . . . . . Total Part Build Rating . | . . . . . . . . . . . . . . . . . . . . . . . . . . . . . . . . Parts Repaired 1 | . 1 . . . . . . . . . . . . . . . . . . . . . . . . . . . . . . Time 86 | . 26 . . . . . . . 60 . . . . . . . . . . . . . . . . . . . . . . Parts Recycled . | . . . . . . . . . . . . . . . . . . . . . . . . . . . . . . . . Recycled Matter . | . . . . . . . . . . . . . . . . . . . . . . . . . . . . . . . . Retrieved Matter . | . . . . . . . . . . . . . . . . . . . . . . . . . . . . . . . . Retrieved Components 6 | . . . 2 . . . . . 2 . . . . . . . . . . . . 2 . . . . . . . . . Parts Scanalyzed . | . . . . . . . . . . . . . . . . . . . . . . . . . . . . . . . . Part Schematics Acquired . | . . . . . . . . . . . . . . . . . . . . . . . . . . . . . . . . Parts Damaged . | . . . . . . . . . . . . . . . . . . . . . . . . . . . . . . . . Bothacking | -11 -10 -10 -9 -9 -9 -8 -8 -8 -7 -7 -7 -7 -7 -6 -6 -6 -6 -6 -6 -6 -5 -5 -5 -5 -5 -5 -5 -4 -4 -4 -4 ------------ Run | Yrd Mat Min Mat Min Exi Min Mat Gar Fac Was Fac Low Dat Pro Fac Gar Fac Low Low Zio Pro Fac Was Fac Upp Upp War Pro Fac Was Fac Used RIF Installer . | . . . . . . . . . . . . . . . . . . . . . . . . . . . . . . . . Robots Hacked 4 | . 1 . . . 3 . . . . . . . . . . . . . . . . . . . . . . . . . . Non-combat 3 | . 1 . . . 2 . . . . . . . . . . . . . . . . . . . . . . . . . . Combat 1 | . . . . . 1 . . . . . . . . . . . . . . . . . . . . . . . . . . Robot Hacks Applied 4 | . 1 . . . 3 . . . . . . . . . . . . . . . . . . . . . . . . . . parse_system 4 | . 1 . . . 3 . . . . . . . . . . . . . . . . . . . . . . . . . . Relay Couplers Released 10 | . . . . . . . . 6 . . 3 . . . . . . . . . . . . . . . . . 1 . . Machine Destruction 10 | . . . . . . . . 6 . . 3 . . . . . . . . . . . . . . . . . 1 . . Fabnet Peak Effective % . | . . . . . . . . . . . . . . . . . . . . . . . . . . . . . . . . Robots Rewired 12 | . . . . . . . . . . . . . . . . . . . . . . . . . 2 1 5 . 3 . 1 Allies Hacked 1 | . . . . . . . . . . . . . . . . . . . . . . . . . . . . . . . 1 Hacks Repelled . | . . . . . . . . . . . . . . . . . . . . . . . . . . . . . . . . Allies | -11 -10 -10 -9 -9 -9 -8 -8 -8 -7 -7 -7 -7 -7 -6 -6 -6 -6 -6 -6 -6 -5 -5 -5 -5 -5 -5 -5 -4 -4 -4 -4 -------- Run | Yrd Mat Min Mat Min Exi Min Mat Gar Fac Was Fac Low Dat Pro Fac Gar Fac Low Low Zio Pro Fac Was Fac Upp Upp War Pro Fac Was Fac Total Allies 84 | . . . . 4 . . . 1 . 19 6 . . 1 3 . . . . . . . 19 . 2 1 5 . 3 19 1 Largest Group 19 | . . . . 3 . . . 1 1 18 9 2 2 1 3 . . . . . . . 19 19 2 2 5 1 2 18 18 Highest-Rated Group 702 | . . . . 44 . . . 39 39 434 247 60 60 96 93 . . . . . . . 702 702 58 58 237 65 98 638 636 Highest-Rated Ally 96 | . . . . 31 . . . 39 39 35 31 30 30 96 31 . . . . . . . 50 50 29 30 65 65 65 50 50 Warlord Squad Rendezvous 1 | . . . . . . . . . . . . . . . . . . . . . . . . 1 . . . . . . . Infantry 1 | . . . . . . . . . . . . . . . . . . . . . . . . 1 . . . . . . . Total Orders 8 | . . . . . . . . . . . . . . . . . . . . . . . . . . 2 5 . . 1 . STAY 4 | . . . . . . . . . . . . . . . . . . . . . . . . . . 1 2 . . 1 . FOLLOW 4 | . . . . . . . . . . . . . . . . . . . . . . . . . . 1 3 . . . . Ally Attacks 633 | . . . . 7 . . . . 12 130 132 4 . 5 12 . . . . . . . 31 106 . 17 16 . 7 59 95 Total Damage 19069 | . . . . 48 . . . . 184 3010 2445 100 . 164 255 . . . . . . . 989 3320 . 347 816 . 1016 1612 4763 Kills 110 | . . . . 1 . . . . 5 9 21 1 . . 1 . . . . . . . 2 24 . 4 2 . 8 3 29 Allies Corrupted 2 | . . . . . . . . . . . . . . . . . . . . . . . . . . . 2 . . . . Allies Melted 1 | . . . . . . . . . . . . . . 1 . . . . . . . . . . . . . . . . . Intel | -11 -10 -10 -9 -9 -9 -8 -8 -8 -7 -7 -7 -7 -7 -6 -6 -6 -6 -6 -6 -6 -5 -5 -5 -5 -5 -5 -5 -4 -4 -4 -4 ------- Run | Yrd Mat Min Mat Min Exi Min Mat Gar Fac Was Fac Low Dat Pro Fac Gar Fac Low Low Zio Pro Fac Was Fac Upp Upp War Pro Fac Was Fac Robot Analysis Total 5 | . 2 . 1 1 . . 1 . . . . . . . . . . . . . . . . . . . . . . . . Derelict Logs Recovered 9 | . . 2 . 1 . . . . . . . . . 1 . . . . . 2 1 . . . . . . 2 . . . Drone Launches . | . . . . . . . . . . . . . . . . . . . . . . . . . . . . . . . . Drone Recoveries . | . . . . . . . . . . . . . . . . . . . . . . . . . . . . . . . . Exploration | -11 -10 -10 -9 -9 -9 -8 -8 -8 -7 -7 -7 -7 -7 -6 -6 -6 -6 -6 -6 -6 -5 -5 -5 -5 -5 -5 -5 -4 -4 -4 -4 ------------- Run | Yrd Mat Min Mat Min Exi Min Mat Gar Fac Was Fac Low Dat Pro Fac Gar Fac Low Low Zio Pro Fac Was Fac Upp Upp War Pro Fac Was Fac Turns Passed 39634 | 218 4171 1562 1939 709 759 2006 1137 1856 620 996 2209 279 114 658 997 1940 1360 888 632 3059 961 67 837 871 1430 1051 1542 591 1020 1495 1660 Spaces Moved 15273 | 94 1087 421 679 253 310 726 378 631 319 456 1026 174 77 461 593 702 402 313 236 1201 346 36 560 334 725 362 697 208 272 513 681 Core 713 | 2 . . . . . . . . . 115 . . . . . 1 . . . . . . 297 . . . . . . 87 211 Treads 12656 | 92 1087 421 679 253 310 726 378 631 319 340 785 5 . . . 426 402 313 236 1201 346 36 263 334 725 362 697 208 272 426 383 Legs . | . . . . . . . . . . . . . . . . . . . . . . . . . . . . . . . . Wheels 1816 | . . . . . . . . . . . 241 169 77 461 593 275 . . . . . . . . . . . . . . . Hover 88 | . . . . . . . . . . 1 . . . . . . . . . . . . . . . . . . . . 87 Flight . | . . . . . . . . . . . . . . . . . . . . . . . . . . . . . . . . Fastest Speed 40 | 50 160 320 240 240 240 240 240 240 166 50 125 140 140 115 115 125 243 245 245 245 245 166 50 163 163 163 166 246 166 50 40 Average Speed 208 | 157 269 320 240 240 240 240 240 241 169 148 163 143 140 120 129 223 243 245 245 245 245 166 103 205 163 231 184 246 240 206 160 Slowest Speed 1550 | 160 320 320 240 240 240 240 240 247 247 246 320 330 140 140 160 1550 245 245 245 245 245 166 166 243 163 250 250 246 252 260 255 Overloaded Moves . | . . . . . . . . . . . . . . . . . . . . . . . . . . . . . . . . Propulsion Burnouts . | . . . . . . . . . . . . . . . . . . . . . . . . . . . . . . . . Robots Hopped . | . . . . . . . . . . . . . . . . . . . . . . . . . . . . . . . . Cave-ins Triggered 4 | . . . . . . . . . . 2 . . . . 1 . . . . . . . 1 . . . . . . . . Exploration Rate (%) 55 | 7 98 83 63 64 69 101 42 65 14 97 30 28 69 73 21 86 14 49 42 85 55 2 96 13 80 53 85 39 14 97 28 Regions Visited 31 Branch Regions 15 Pre-discovered Areas 8 | . . . . 1 1 . . . . . . 1 1 1 . . . . . 2 . . . . . . 1 . . . . Known Exits Taken 5 | . . . . . . . 1 . . . . . . . 1 . 1 . . . 1 . . 1 . . . . . . . Unknown Exits Taken 18 | 1 1 1 1 1 1 1 . . . . 1 1 1 1 . . . 1 1 1 . . . . 1 1 1 1 . . . Scrap Searched 18 | . . 1 . 2 . 1 . . . . . . . 1 . . . 1 . 4 3 . . . 1 1 . 3 . . . Spaces Dug 322 | . 6 . 25 61 . 20 . 12 1 21 24 . . . 28 28 16 12 25 . 10 . . 1 5 . 7 4 3 . 13 Terrain Destroyed 2438 | . 28 17 72 192 . 243 134 52 10 24 237 57 . 216 152 119 109 16 51 . 24 . 150 66 33 22 11 8 173 36 186 Melee 11 | . 3 . 1 . . . . . . . . . . . . . . . . . . . . . . . 6 . . . 1 Projectile 318 | . 3 3 4 . . . 7 1 1 24 24 . . 5 15 14 8 16 . . 24 . . 20 33 22 5 8 36 13 32 AOE 2109 | . 22 14 67 192 . 243 127 51 9 . 213 57 . 211 137 105 101 . 51 . . . 150 46 . . . . 137 23 153 Terrain Rammed . | . . . . . . . . . . . . . . . . . . . . . . . . . . . . . . . . Walls Destroyed . | . . . . . . . . . . . . . . . . . . . . . . . . . . . . . . . . Machines Disabled . | . . . . . . . . . . . . . . . . . . . . . . . . . . . . . . . . Actions | -11 -10 -10 -9 -9 -9 -8 -8 -8 -7 -7 -7 -7 -7 -6 -6 -6 -6 -6 -6 -6 -5 -5 -5 -5 -5 -5 -5 -4 -4 -4 -4 --------- Run | Yrd Mat Min Mat Min Exi Min Mat Gar Fac Was Fac Low Dat Pro Fac Gar Fac Low Low Zio Pro Fac Was Fac Upp Upp War Pro Fac Was Fac Total 21054 | 126 2159 565 889 329 324 939 570 859 374 736 1321 198 83 532 738 944 692 396 289 1318 434 44 792 456 882 499 899 274 484 902 1007 Wait 3171 | 6 849 61 49 38 . 158 108 94 6 209 75 9 7 26 31 54 213 39 36 79 66 . 159 54 86 75 89 49 60 274 112 Move 15242 | 93 1086 420 678 252 309 725 377 630 319 454 1025 173 76 460 593 699 401 312 235 1200 345 36 558 333 724 361 696 207 272 512 681 Hop . | . . . . . . . . . . . . . . . . . . . . . . . . . . . . . . . . Pick Up 248 | 1 21 10 12 2 3 2 11 13 5 4 11 3 . 3 10 23 3 2 6 6 . . 21 9 1 6 13 3 8 28 8 Fast Attach 178 | 8 1 2 7 1 . . 1 2 5 8 32 1 . 4 14 16 3 1 . 10 . 3 11 7 1 1 10 . 4 19 6 Attach 139 | . 2 2 4 1 . . 10 6 4 3 8 1 . 3 12 4 4 2 4 1 . 2 9 1 . 5 2 . 19 10 20 Detach 79 | 1 1 1 3 1 . . 1 . 1 2 9 . . . 7 6 1 3 1 1 . 1 7 5 . 1 5 . 7 7 7 Swap 278 | . 19 12 28 10 5 10 8 21 4 6 18 2 . 2 13 25 13 4 . 5 1 . 9 4 8 3 17 1 14 5 11 Drop 269 | . 8 6 26 3 4 2 17 13 7 12 21 4 . 7 11 22 3 . 3 15 . 2 6 13 1 1 22 4 6 19 11 Fire 1229 | 17 104 49 77 21 . 39 37 60 23 35 115 5 . 27 47 46 50 33 4 . 22 . 11 30 55 34 20 8 89 24 147 Melee 92 | . 7 1 3 . 3 . . . . . 5 . . . . 39 . . . 1 . . . . . . 25 . 3 4 1 Ram . | . . . . . . . . . . . . . . . . . . . . . . . . . . . . . . . . Kick . | . . . . . . . . . . . . . . . . . . . . . . . . . . . . . . . . Crush 15 | . 2 1 2 . . 3 . . . . 2 . . . . . 1 . . . . . . . . . . . 1 . 3 Escape Stasis 18 | . . . . . . . . 6 . 1 . . . . . 10 . . . . . . 1 . . . . . . . . Rewire 18 | . . . . . . . . . . . . . . . . . . . . . . . . . 6 12 . . . . . Trap 64 | . 59 . . . . . . . . 2 . . . . . . . . . . . . . . . . . 2 1 . . Miscellaneous 14 | . . . . . . . . 14 . . . . . . . . . . . . . . . . . . . . . . . Route ------- -11/Scrapyard -10/Materials (discovered 6 exits: *Mat x3 / *Min x2 / [*Sub]) -10/Mines -9/Materials (discovered 4 exits: *Mat x2 / *Min / Sto) -9/Mines (discovered 2 exits: *Mat / *Exi) -9/Exiles -8/Mines (discovered 2 exits: *Mat x2) -8/Materials -8/Garrison (discovered 2 exits: *Fac x2) -7/Factory -7/Waste -7/Factory -7/Lower Caves -7/Data Miner -6/Proximity Caves -6/Factory (discovered 4 exits: *Fac / *Low x2 / Gar) -6/Garrison (discovered 3 exits: *Fac x3) -6/Factory (discovered 5 exits: Fac x4 / *Low) -6/Lower Caves -6/Lower Caves -6/Zion -5/Proximity Caves -5/Factory -5/Waste -5/Factory (discovered 5 exits: *Fac / *Upp x2 / *Ext x2) -5/Upper Caves -5/Upper Caves -5/Warlord -4/Proximity Caves -4/Factory -4/Waste -4/Factory History --------- Turn | Location | Event 7 | -11/Scrapyard | Discovered new exit (range 15) 219 | -11/Scrapyard | Entered Materials 335 | -10/Materials | Build established: Mutant 1398 | -10/Materials | Discovered new exit (range 13) 1413 | -10/Materials | Repaired Ion Engine? 1673 | -10/Materials | Discovered new exit (range 8) 1933 | -10/Materials | Discovered new exit (range 15) 2031 | -10/Materials | Discovered new exit (range 13) 2513 | -10/Materials | Discovered new exit (range 9) 2701 | -10/Materials | Discovered new exit (range 11) 4390 | -10/Materials | Entered Mines 4557 | -10/Mines | Met a Derelict who couldn't figure out how to use a Trap Extractor 4660 | -10/Mines | Murdered YI-UF0 4660 | -10/Mines | Destroyed YI-UF0 4684 | -10/Mines | Found Corrupted Prototype Storage 4688 | -10/Mines | Identified YI-UF0's Bottomless Matter Pit 5370 | -10/Mines | Core integrity fell below 50% 5485 | -10/Mines | Learned Materials terminal intel 5504 | -10/Mines | Discovered new exit (range 9) 5756 | -10/Mines | Found a damaged Exp. Sensor Array with a note attached 5763 | -10/Mines | Found Prototype Device 5952 | -10/Mines | Entered Materials 5952 | -9/Materials | Evolved 2 slots: Propulsion x1, Utility x1 5953 | -9/Materials | Identified exit to Storage 5954 | -9/Materials | Loaded intel: 12 terminal locations 6396 | -9/Materials | Discovered new exit (range 12) 6800 | -9/Materials | Discovered new exit (range 8) 7097 | -9/Materials | Build established: Scavenger-Mutant 7431 | -9/Materials | Destroyed 7 combat bots 7468 | -9/Materials | Discovered new exit (range 15) 7579 | -9/Materials | Build established: Mutant 7891 | -9/Materials | Entered Mines 7933 | -9/Mines | Met a Derelict bent on vengeance 7973 | -9/Mines | Discovered new exit (range 13) 7987 | -9/Mines | Received a Rocket Launcher from a helpful Derelict 8039 | -9/Mines | Assembled infested the area 8044 | -9/Mines | Assisted by a Guerilla fighting off Assembled 8076 | -9/Mines | Assisted by bots powering up and referring to "LRC-V3" 8101 | -9/Mines | Received a Mining Laser from a helpful Derelict 8485 | -9/Mines | Learned location of Zion (-6) 8547 | -9/Mines | Deemed a non-threat by the Exiles lab entrance 8549 | -9/Mines | Discovered new exit (range 5) 8600 | -9/Mines | Entered Exiles 8660 | -9/Exiles | Met 8R-AWN 8704 | -9/Exiles | Met EX-HEX 8773 | -9/Exiles | Met EX-BIN 8801 | -9/Exiles | Aligned with FarCom system 8803 | -9/Exiles | Given EX-Vault access code 8858 | -9/Exiles | Opened EX-Vault 8878 | -9/Exiles | Found 0b10 Alert Chip 8891 | -9/Exiles | Found AWS/Thermal 8897 | -9/Exiles | Found Latent Energy Streamer 8949 | -9/Exiles | Warned to stay clear of 0b10 Research branches 9016 | -9/Exiles | Met EX-DEC 9187 | -9/Exiles | Build established: Scavenger-Mutant 9330 | -9/Exiles | Discovered new exit (range 14) 9359 | -9/Exiles | Stole three prototypes: 0b10 Alert Chip, AWS/Thermal, Latent Energy Streamer 9359 | -9/Exiles | Entered Mines 9699 | -8/Mines | Discovered new exit (range 9) 9718 | -8/Mines | Build established: Mutant 10003 | -8/Mines | Discovered new exit (range 10) 11365 | -8/Mines | Entered Materials 11365 | -8/Materials | Evolved 2 slots: Propulsion x1, Utility x1 11632 | -8/Materials | Identified Exp. Sensor Array 12337 | -8/Materials | Garrison activated, responded to threat 12437 | -8/Materials | Destroyed 7 combat bots 12460 | -8/Materials | Identified exit to Garrison 12478 | -8/Materials | Build established: Scavenger-Mutant 12502 | -8/Materials | Entered Garrison 12541 | -8/Garrison | Garrison Relay disabled 12656 | -8/Garrison | Triggered checkpoint 12838 | -8/Garrison | Learned Factory security intel 13180 | -8/Garrison | Triggered checkpoint 13272 | -8/Garrison | System corruption reached 10% 13428 | -8/Garrison | Discovered new exit (range 8) 13530 | -8/Garrison | Triggered checkpoint 13835 | -8/Garrison | Discovered new exit (range 13) 14038 | -8/Garrison | Triggered checkpoint 14185 | -8/Garrison | Rescued a captive Derelict 14221 | -8/Garrison | Build established: Trapper-Mutant 14228 | -8/Garrison | Garrison Relay disabled 14268 | -8/Garrison | Triggered checkpoint 14358 | -8/Garrison | Entered Factory 14358 | -7/Factory | Accompanied by 1 ally 14358 | -7/Factory | Evolved 2 slots: Propulsion x1, Utility x1 14360 | -7/Factory | FarCom data flow suspended 14691 | -7/Factory | Build established: Scavenger-Mutant 14736 | -7/Factory | Discovered new exit (range 15) 14852 | -7/Factory | Garrison activated, responded to threat 14978 | -7/Factory | Sucked down chute 14978 | -7/Factory | Entered Waste 14979 | -7/Waste | Met a frightened Derelict 14997 | -7/Waste | Spotted C-40 Crusher 15024 | -7/Waste | Spotted C-40 Crusher 15044 | -7/Waste | Build established: Trapper-Mutant 15098 | -7/Waste | Spotted C-40 Crusher 15152 | -7/Waste | Spotted C-40 Crusher 15402 | -7/Waste | Crushed by falling debris 15408 | -7/Waste | Spotted C-40 Crusher 15426 | -7/Waste | Spotted C-40 Crusher 15435 | -7/Waste | Crushed by falling debris 15460 | -7/Waste | Crushed by Compactor (1 part destroyed, 1 dropped) 15461 | -7/Waste | Crushed by Compactor (1 part destroyed, 1 dropped) 15463 | -7/Waste | Released all parts (6) 15464 | -7/Waste | Crushed by Compactor (1 part destroyed) 15495 | -7/Waste | Lost 5 parts (1n4u) 15519 | -7/Waste | Warlord forces began an assault 15543 | -7/Waste | Allies destroyed C-40 Crusher 15549 | -7/Waste | Destroyed C-40 Crusher 15552 | -7/Waste | Allies destroyed C-40 Crusher 15553 | -7/Waste | Destroyed C-40 Crusher 15558 | -7/Waste | Allies destroyed C-40 Crusher 15579 | -7/Waste | Lost 8 allies 15579 | -7/Waste | Found Damper Plating 15646 | -7/Waste | Found Damper Plating 15903 | -7/Waste | Build established: Mutant 15946 | -7/Waste | Discovered new exit (range 12) 15974 | -7/Waste | Entered Factory 15974 | -7/Factory | Accompanied by 9 allies 16400 | -7/Factory | Build established: Scavenger-Mutant 16498 | -7/Factory | Cargo convoy interrupted 16508 | -7/Factory | Garrison activated, responded to threat 16516 | -7/Factory | System corruption reached 10% 16547 | -7/Factory | Core integrity fell below 50% 16550 | -7/Factory | Lost 9 allies 16576 | -7/Factory | Destroyed 12 combat bots 16687 | -7/Factory | Garrison activated, responded to threat 17174 | -7/Factory | First assault squad dispatched 17348 | -7/Factory | Core integrity fell below 20% 17817 | -7/Factory | Fabricated L-41 Fighter? 18135 | -7/Factory | Discovered new exit (range 3) 18183 | -7/Factory | Entered Lower Caves 18183 | -7/Lower Caves | Accompanied by 2 allies 18196 | -7/Lower Caves | Met a Warlord Commander 18197 | -7/Lower Caves | Learned location of Warlord (-5) 18198 | -7/Lower Caves | Warlord Commander delivered Encrypted Comm Array 18206 | -7/Lower Caves | Found Encrypted Comm Array 18244 | -7/Lower Caves | Spotted B-75 Beast 18252 | -7/Lower Caves | Destroyed B-75 Beast 18456 | -7/Lower Caves | A Derelict revealed a hidden shortcut to meet someone special 18462 | -7/Lower Caves | Entered Data Miner 18462 | -7/Data Miner | Accompanied by 2 allies 18462 | -7/Data Miner | Discovered new exit (range 6) 18489 | -7/Data Miner | Met Data Miner 18523 | -7/Data Miner | Learned location of Section 7 (-2) 18523 | -7/Data Miner | Acquired the access code to Warlord's prototype stash 18535 | -7/Data Miner | Received God Mode back door access code from Data Miner 18576 | -7/Data Miner | Entered Proximity Caves 18576 | -6/Proximity Caves | Accompanied by 2 allies 18738 | -6/Proximity Caves | Escorted by Enhanced Grunt 18748 | -6/Proximity Caves | Attracted the attention of an 0b10 outpost 18788 | -6/Proximity Caves | Destroyed 7 combat bots 19028 | -6/Proximity Caves | Build established: Mutant 19039 | -6/Proximity Caves | Destroyed 7 combat bots 19132 | -6/Proximity Caves | Spotted B-75 Beast 19190 | -6/Proximity Caves | Discovered new exit (range 15) 19234 | -6/Proximity Caves | Entered Factory 19234 | -6/Factory | Evolved 2 slots: Utility x1, Weapon x1 19383 | -6/Factory | Allied Derelicts emerged from ambush trap array 19502 | -6/Factory | Lost 3 allies 19773 | -6/Factory | Identified exit to Lower Caves 19792 | -6/Factory | Build established: Scavenger-Tank 19867 | -6/Factory | Discovered new exit (range 6) 19934 | -6/Factory | First assault squad dispatched 19966 | -6/Factory | Crushed by falling debris 19966 | -6/Factory | System corruption reached 10% 20008 | -6/Factory | Lost 7 parts (1p3n1u2w) 20231 | -6/Factory | Identified exit to Garrison 20231 | -6/Factory | Entered Garrison 20360 | -6/Garrison | Triggered checkpoint 20369 | -6/Garrison | Triggered checkpoint 20394 | -6/Garrison | Destroyed 9 combat bots 20398 | -6/Garrison | Build established: Tank 20744 | -6/Garrison | Discovered new exit (range 3) 20785 | -6/Garrison | Build established: Gladiator 20786 | -6/Garrison | Phase Generator disabled 20898 | -6/Garrison | Attempted to access garrison exit controls, blocked by remote lockdown 20985 | -6/Garrison | Lost 6 parts (2p1n3u) 21117 | -6/Garrison | Triggered checkpoint 21288 | -6/Garrison | Build established: Scavenger-Tank 21590 | -6/Garrison | Discovered new exit (range 12) 21609 | -6/Garrison | Discovered new exit (range 46) 21609 | -6/Garrison | Discovered new exit (range 12) 21609 | -6/Garrison | Discovered new exit (range 41) 21722 | -6/Garrison | Spotted B-75 Beast 21750 | -6/Garrison | Build established: Hauler-Gladiator 21783 | -6/Garrison | Found Gamma Bomb Array 21801 | -6/Garrison | Found Unknown Launcher 21874 | -6/Garrison | Identified Fusion Bomb Launcher 21962 | -6/Garrison | Found Fusion Bomb Launcher 21992 | -6/Garrison | Attempted to access garrison exit controls, blocked by remote lockdown 22161 | -6/Garrison | Build established: Hauler-Mutant 22171 | -6/Garrison | Entered Factory 22328 | -6/Factory | Core integrity fell below 50% 22521 | -6/Factory | First assault squad dispatched 22606 | -6/Factory | Build established: Hauler-Tank 22752 | -6/Factory | Spotted B-75 Beast 22781 | -6/Factory | Destroyed B-75 Beast 23045 | -6/Factory | Identified exit to Factory 23225 | -6/Factory | Discovered exit to Lower Caves (range 15) 23351 | -6/Factory | Build established: Hauler-Mutant 23531 | -6/Factory | Entered Lower Caves 23660 | -6/Lower Caves | Build established: Hauler-Gunner 24138 | -6/Lower Caves | Spotted B-75 Beast 24179 | -6/Lower Caves | Destroyed B-75 Beast 24295 | -6/Lower Caves | Discovered new exit (range 15) 24419 | -6/Lower Caves | Entered another Lower Caves area 24419 | -6/Lower Caves | Spotted 4W-1SL(f) 24419 | -6/Lower Caves | Spotted EL-BTB(f) 24419 | -6/Lower Caves | Spotted I6-HLD(f) 24420 | -6/Lower Caves | Adv. Phase Shifter stolen by Master Thief 24421 | -6/Lower Caves | Encountered a Master Thief 24421 | -6/Lower Caves | Encountered a Master Thief 24421 | -6/Lower Caves | Encountered a Master Thief 24423 | -6/Lower Caves | Gamma Bomb Array stolen by Master Thief 24424 | -6/Lower Caves | Destroyed EL-BTB(f) 25019 | -6/Lower Caves | Discovered new exit (range 14) 25051 | -6/Lower Caves | Entered Zion 25158 | -6/Zion | System corruption cleaned by Quarantine Array 25219 | -6/Zion | System corruption cleaned by Quarantine Array 25280 | -6/Zion | Found Prototype Hackware 25280 | -6/Zion | Identified Exp. Hacking Suite 25292 | -6/Zion | Found Prototype Processor 25292 | -6/Zion | Identified Exp. Core Analyzer 25309 | -6/Zion | Found Prototype Processor 25309 | -6/Zion | Identified Exp. Melee Analysis Suite 25494 | -6/Zion | Discovered new exit (range 16) 25683 | -6/Zion | Learned location of Quarantine (-2) 26159 | -6/Zion | System corruption cleaned by Quarantine Array 26660 | -6/Zion | Found Prototype Device 27530 | -6/Zion | Build established: Hauler-Mutant 28110 | -6/Zion | Entered Proximity Caves 28416 | -5/Proximity Caves | Build established: Hauler-Gunner 28694 | -5/Proximity Caves | Learned Factory emergency access door positions 29010 | -5/Proximity Caves | Discovered exit to Factory (range 20) 29071 | -5/Proximity Caves | Entered Factory 29071 | -5/Factory | Evolved 2 slots: Propulsion x1, Utility x1 29072 | -5/Factory | Identified exit to Extension 29138 | -5/Factory | Sucked down chute 29138 | -5/Factory | Entered Waste 29142 | -5/Waste | Spotted C-40 Crusher 29170 | -5/Waste | Identified Mobile Refinery Mk. CCLXVII 29248 | -5/Waste | Spotted C-40 Crusher 29253 | -5/Waste | Spotted C-40 Crusher 29257 | -5/Waste | Destroyed C-40 Crusher 29263 | -5/Waste | Destroyed C-40 Crusher 29341 | -5/Waste | Spotted C-40 Crusher 29341 | -5/Waste | Spotted C-40 Crusher 29344 | -5/Waste | Destroyed C-40 Crusher 29347 | -5/Waste | Destroyed C-40 Crusher 29353 | -5/Waste | Crushed by Compactor (1 part destroyed) 29356 | -5/Waste | Crushed by Compactor (1 part destroyed, 2 dropped) 29359 | -5/Waste | Crushed by Compactor (1 part destroyed, 1 dropped) 29362 | -5/Waste | Crushed by Compactor (0 parts destroyed, 1 dropped) 29365 | -5/Waste | Crushed by Compactor (1 part destroyed) 29368 | -5/Waste | Crushed by Compactor (1 part destroyed, 2 dropped) 29397 | -5/Waste | Spotted C-40 Crusher 29399 | -5/Waste | Lost 6 parts (1p1u4w) 29414 | -5/Waste | Found Prototype Device 29414 | -5/Waste | Identified Adv. Particle Accelerator 29483 | -5/Waste | Discovered new exit (range 16) 29527 | -5/Waste | Warlord forces began an assault 29538 | -5/Waste | Allies destroyed C-40 Crusher 29568 | -5/Waste | Crushed by falling debris 29697 | -5/Waste | Found Damper Plating 29975 | -5/Waste | Entered Factory 29975 | -5/Factory | Accompanied by 19 allies 30211 | -5/Factory | Discovered exit to Extension (range 15) 30348 | -5/Factory | Discovered new exit (range 16) 30368 | -5/Factory | Build established: Hauler-Tank 30476 | -5/Factory | Lost 18 allies 30575 | -5/Factory | First assault squad dispatched 30628 | -5/Factory | Identified exit to Upper Caves 30655 | -5/Factory | Joined by Warlord Infantry squad 30714 | -5/Factory | Lost 3 allies 30846 | -5/Factory | Entered Upper Caves 31732 | -5/Upper Caves | Attracted the attention of an 0b10 checkpoint 32093 | -5/Upper Caves | Attracted the attention of an 0b10 outpost 32157 | -5/Upper Caves | Destroyed 7 combat bots 32213 | -5/Upper Caves | Discovered new exit (range 14) 32276 | -5/Upper Caves | Entered another Upper Caves area 32276 | -5/Upper Caves | Accompanied by 2 allies 32413 | -5/Upper Caves | Attracted the attention of an 0b10 outpost 32955 | -5/Upper Caves | Attracted the attention of an 0b10 checkpoint 33294 | -5/Upper Caves | Discovered new exit (range 15) 33327 | -5/Upper Caves | Entered Warlord 33425 | -5/Warlord | System corruption cleaned by Quarantine Array 33725 | -5/Warlord | Build established: Hauler-Mutant 33901 | -5/Warlord | Learned Armory stockpile data 33903 | -5/Warlord | Learned 4 Armory zone layouts 33903 | -5/Warlord | Learned 4 Testing zone layouts 33903 | -5/Warlord | Learned Factory repair station intel 33903 | -5/Warlord | Learned Factory garrison access intel 33903 | -5/Warlord | Learned Armory recycling unit intel 34199 | -5/Warlord | Met Warlord 34219 | -5/Warlord | Opened Warlord's prototype stash 34224 | -5/Warlord | Warlord's base attacked by MAIN.C 34228 | -5/Warlord | Found Prototype Reactor 34235 | -5/Warlord | Found Prototype Device 34235 | -5/Warlord | Identified Exp. Cloaking Device 34247 | -5/Warlord | Found Prototype Hackware 34261 | -5/Warlord | Found Exp. Core Analyzer 34442 | -5/Warlord | Found Prototype Launcher 34445 | -5/Warlord | Found Prototype Energy Cannon 34448 | -5/Warlord | Found Prototype Energy Cannon 34458 | -5/Warlord | Found Prototype Piercing Weapon 34458 | -5/Warlord | Identified Vortex Lance 34463 | -5/Warlord | Found Prototype Energy Gun 34463 | -5/Warlord | Identified Vortex Rifle 34470 | -5/Warlord | Found Vortex Lance 34490 | -5/Warlord | Found Vortex Rifle 34574 | -5/Warlord | Warlord forces counterattacked 34613 | -5/Warlord | Spotted Striker 34653 | -5/Warlord | Spotted Executioner 34675 | -5/Warlord | Found Prototype Ballistic Cannon 34675 | -5/Warlord | Identified Hvy. Autocannon 34721 | -5/Warlord | Discovered new exit (range 15) 34725 | -5/Warlord | Spotted Executioner 34731 | -5/Warlord | Build established: Hauler-Tank 34741 | -5/Warlord | P-70 Sage assimilated allied Sentinel 6a 34774 | -5/Warlord | Lost 3 allies 34824 | -5/Warlord | Spotted Striker 34839 | -5/Warlord | Destroyed Striker 34869 | -5/Warlord | Entered Proximity Caves 34869 | -4/Proximity Caves | Accompanied by 1 ally 35169 | -4/Proximity Caves | Lost 3 allies 35203 | -4/Proximity Caves | Learned Research security intel 35255 | -4/Proximity Caves | Learned 4 Research zone layouts 35393 | -4/Proximity Caves | Discovered new exit (range 16) 35460 | -4/Proximity Caves | Entered Factory 35460 | -4/Factory | Accompanied by 1 ally 35460 | -4/Factory | Evolved 2 slots: Power x1, Utility x1 35461 | -4/Factory | Loaded intel: 6 repair station locations 35462 | -4/Factory | Loaded intel: 3 garrison access locations 35475 | -4/Factory | Identified Vortex Chain Reactor 35552 | -4/Factory | Identified Ghost Barrier 36137 | -4/Factory | Build established: Hauler-Gunner 36162 | -4/Factory | Garrison activated, responded to threat 36210 | -4/Factory | First assault squad dispatched 36220 | -4/Factory | Destroyed 8 combat bots 36357 | -4/Factory | Destroyed 8 combat bots 36364 | -4/Factory | Identified Vortex Catalyst Activator 36366 | -4/Factory | Lost 6 parts (2n3u1w) 36469 | -4/Factory | System corruption reached 10% 36480 | -4/Factory | Sucked down chute 36480 | -4/Factory | Entered Waste 36481 | -4/Waste | Met a frightened Derelict 36489 | -4/Waste | Found Prototype Device 36489 | -4/Waste | Identified Exp. Force Field 36495 | -4/Waste | Spotted C-40 Crusher 36503 | -4/Waste | Allies destroyed C-40 Crusher 36508 | -4/Waste | Spotted C-40 Crusher 36510 | -4/Waste | 2 allies followed down the chute 36522 | -4/Waste | Spotted C-40 Crusher 36536 | -4/Waste | Destroyed C-40 Crusher 36546 | -4/Waste | Spotted C-40 Crusher 36571 | -4/Waste | Crushed by Compactor (1 part destroyed, 1 dropped) 36573 | -4/Waste | Crushed by Compactor (1 part destroyed, 1 dropped) 36576 | -4/Waste | Crushed by Compactor (0 parts destroyed, 1 dropped) 36577 | -4/Waste | Crushed by Compactor (1 part destroyed) 36579 | -4/Waste | Crushed by Compactor (1 part destroyed) 36580 | -4/Waste | Crushed by Compactor (0 parts destroyed, 1 dropped) 36582 | -4/Waste | Destroyed C-40 Crusher 36585 | -4/Waste | Crushed by Compactor (0 parts destroyed, 1 dropped) 36586 | -4/Waste | Lost 3 allies 36587 | -4/Waste | Destroyed C-40 Crusher 36610 | -4/Waste | Lost 6 parts (1p3u2w) 36610 | -4/Waste | Found Damper Plating 36635 | -4/Waste | Spotted C-40 Crusher 36644 | -4/Waste | Identified Vortex Driver (x2) 36652 | -4/Waste | Spotted C-40 Crusher 36654 | -4/Waste | Released all parts (8) 36687 | -4/Waste | Warlord forces began an assault 36694 | -4/Waste | Allies destroyed C-40 Crusher 36702 | -4/Waste | Allies destroyed C-40 Crusher 36708 | -4/Waste | Found Damper Plating 37023 | -4/Waste | Found Heavy Servo Lattice 37082 | -4/Waste | Build established: Hauler-Mutant 37597 | -4/Waste | Build established: Hauler-Tank 37730 | -4/Waste | Discovered new exit (range 16) 37773 | -4/Waste | Found Prototype Device 37773 | -4/Waste | Identified Thermal Barrier 37900 | -4/Waste | Found Broken Adv. Powered Armor 37975 | -4/Waste | Entered Factory 37975 | -4/Factory | Accompanied by 18 allies 37997 | -4/Factory | Garrison activated, responded to threat 38077 | -4/Factory | Lost 8 allies 38315 | -4/Factory | Lost 6 allies 38475 | -4/Factory | First assault squad dispatched 39174 | -4/Factory | Destroyed 11 combat bots 39218 | -4/Factory | System corruption reached 30% 39335 | -4/Factory | High security lockdown imminent 39387 | -4/Factory | Destroyed 10 combat bots 39415 | -4/Factory | High security lockdown engaged 39428 | -4/Factory | Destroyed 9 combat bots 39437 | -4/Factory | Lost 6 parts (1p2n2u1w) 39482 | -4/Factory | Released all parts (4) 39511 | -4/Factory | Lost 4 parts (2n2u) 39582 | -4/Factory | Core integrity fell below 50% 39626 | -4/Factory | Core integrity fell below 20% 39635 | -4/Factory | Destroyed by C-35 Carver with Improved Concussive RPG Last Messages --------------- 39610_ ALERT: Suspicious intruders detected, dispatching Cutter reinforcements to area. 39611_ System corrupted: Energy discharge (-22). 39612_ Acquired Imp. Cloaking Device. 39623_ C-30 ARC bursts open, deploying its payload. 39623_ G-73 Enforcer unfolds itself. 39623_ G-67 Veteran unfolds itself. 39623_ L-61 Swordsman unfolds itself. 39623_ E-15 Imp unfolds itself. 39623_ Imp. Cloaking Device destroyed. 39624_ C-30 ARC bursts open, deploying its payload. 39624_ G-73 Enforcer unfolds itself. 39624_ G-67 Veteran unfolds itself. 39624_ I-47 Archangel unfolds itself. 39624_ E-15 Imp destroyed. 39627_ Knocked back. 39627_ Acquired 7 matter. 39631_ System corrupted: Component data lost. Map ----- +----------------------------------------------------+ | ??# #%" #??????????? | | ??# #" #??????????? | | ??#############"% "#??????????? | | ??????????????## "%#??????????? | | ???????????????#! "#??????????? | | ???????????????#% #??????????? | | ?##########????# #??????????? | | ?# ???# #??????????? | | ?# ??## ##?????????? | | ?# ?# #?????????? | | ?# ?# #######???? | | ?# # ?? | | ?# # ?? | | ?# / ?? | | ?# # H ?? | | ?# # ??? | | ?# ?# #######???? | | ?# ?# #?????????? | | ?# ??### ###?????????? | | ?###########+#### #???????????? | | ?????????# #???????????? | | ?????????# c +???????????? | | ?????????# #???????????? | | ?????????# #???????????? | | ?????????# #???????????? | | ?????????#@ ###"####???????????? | | ???????? #??! ?????????????? | | ?????? #?? ????????????? | | ???? +?? #???????????? | | ?? #??"" #???????????? | | # #??"" #???????????? | | # # #??"" #???????????? | | # ## ## #????? #???????????? | | # ??##? #????? #???????????? | | # ????? #??????????????????? | | # ?????? #??????????????????? | | # ?????? #??????????????????? | | ? ??????????????????????????? | | ??? ??????????????????????????? | | ??????#???????????????????????????? | | ??????????????????????????????????? | | ??????????????????????????????????? | | ??????????????????????????????????? | | ??????????????????????????????????? | | ??????????????????????????????????? | | ??????????????????????????????????? | | ??????????????????????????????????? | | ??????????????????????????????????? | | ??????????????????????????????????? | | ??????????????????????????????????? | +----------------------------------------------------+ Best States ------------- Heat Dissipation 67 Coolant Potential 65 Energy Generation 55 Energy Capacity 700 Matter Stores 600 Matter Capacity 600 Sight Range 23 Robot Scan Range 20 Terrain Scan Density 10 Jamming Range 12 Cloak Strength 4 Armor Coverage 3500 Resistance: TH 50 Resistance: EX 50 Resistance: EM 90 Propulsion Shielding 66 Phase Shifting 15 Evasion (%) 57 Targeting Accuracy 8 Melee Accuracy 12 Launcher Accuracy 20 Target Analysis 5 Core Analysis 8 Recoil Reduction 6 Matter Filtering 30 Kinecelleration 30 Offensive Hacking 26 Defensive Hacking 20 Authchip Count 3 Trap Extractor Capacity 6 Item Schematics ----------------- Cargo Storage Unit | -9/Materials | Hacked Lrn. Tractor Beam | -8/Materials | Hacked Combat Drone Bay | -7/Data Miner | Free Lgt. Regenerative Plating | -7/Data Miner | Free Gravity Neutralizer | -7/Data Miner | Free Cld. Aerolev Unit | -7/Data Miner | Free Imp. Heavy Laser | -7/Data Miner | Free Antigrav System | -7/Data Miner | Free Imp. Transmission Jammer | -7/Data Miner | Free Disruptor Cannon | -7/Data Miner | Free Hyp. Gauss Rifle | -7/Data Miner | Free Imp. Thermal Shield | -7/Data Miner | Free Centrium Wheel | -7/Data Miner | Free Force Lance | -7/Data Miner | Free Barrage Gun | -6/Zion | Free Enh. Flamer | -6/Zion | Free Plasma Flamer | -6/Zion | Free Imp. Particle Charger | -6/Zion | Archive Mni. Drone Bay | -6/Zion | Archive Enh. Optical Array | -6/Zion | Archive Recoil Nullifier | -6/Zion | Archive Bore Cannon | -6/Zion | Archive Imp. Shock Absorption System | -6/Zion | Archive Mak. Cloaking Device | -6/Zion | Archive Point Defense System | -6/Zion | Archive Mak. Transmission Jammer | -6/Zion | Archive Phase Gun | -6/Zion | Archive Hvy. Gauss Cannon | -6/Zion | Archive Imp. System Shield | -6/Zion | Archive Hvy. Phase Cannon | -6/Zion | Archive Imp. Kinecellerator | -6/Zion | Archive Lrn. Phase Cannon | -6/Zion | Archive Robot Schematics ------------------ E-15 Imp | -7/Data Miner | Free X-57 Shotgunner | -7/Data Miner | Free M-14 Sweeper | -7/Data Miner | Free H-55 Commando | -7/Data Miner | Free M-22 Extractor | -7/Data Miner | Free K-01 Serf | -6/Zion | Archive B-48 Gladiator | -6/Zion | Archive L-41 Fighter | -6/Zion | Archive Fabricated ------------ L-41 Fighter | x3 | -7/Factory | Preloaded Alien Tech Used ----------------- None Achievements -------------- Below Challenges ------------ None Game ------ Seed SwarmPhysicsEngine Manual? 0 Play Time 05:11:32 Cumulative 162.9 hours Start 2024.06.22 @ 17:28:53 End 2024.06.24 @ 19:19:48 Sessions 3 Manual Loads 0 Difficulty Rogue Special Mode None Game No. 74 Rogue 74 Adventurer 0 Explorer 0 Win Type - Total 2 Types 1/0/1/0/0/0/0/0/0 Lore% 68 Gallery% 79 Achievement% 60 Wizard Run 0 Options --------- Layout 1 ASCII 0 Keyboard 0 Movement Mouse Keybinds 0 Fullscreen 2 Font 18/SmallcapsGlow Map View 50x40 Zoom Use 0% Tactical HUD 1 Map Filters NONE Filters NONE Steam 1 RUN: 269914fa-ea39-4aed-b0d1-5bce8e5337f7